Workbook

Sheet Read me
A1: HOW TO USE THIS DOCUMENT
A2: Welcome to the model used to determine the Emergency Responce levy rate for the 2024 Off-site Levies Bylaw. Note: This model is in DRAFT form for discussion purposes, using the latest information and assumptions available.
A4: Emergency responce Levy Tabs 1 - 7
A5: Tab Number | B5: Title | C5: Description
A6: Tab 1 | B6: Steps and Assumptions | C6: This tab entails the assumptions and steps to create the financial model. It also provides some details to clarify questions around the assumptions.
A7: Tab 2 | B7: Rate Summary | C7: This tab provides a high level summary of the steps that are taken to determine Emergency Responce Levy Rate calculation, and provides a look at the proposed levy rate.
A8: Tab 3 | B8: Unlevied Land | C8: This tab describes the remaining unlevied land that is included in the model.
A9: Tab 4 | B9: Infrastructure | C9: This tab provides details on Emergency Responce projects that need to be built over the model period to support the growth of communities
A10: Tab 5 | B10: Benefit Allocation | C10: This tab provides the benefit rate calculation that considers the land that will benefit from infrastructure and then ties back to the future residents/jobs in that land.
A11: Tab 6 | B11: Financial Model | C11: This tab provides the detailed forecast data used to calculated benefit.
A12: Tab 7 | B12: Bylaw Continuity | C12: This sheet shows the continuity of expenditures, developer contributions, investment income, and fund balances for both the 2016 and 2024 Off-site Levies bylaws.

Sheet Tab 1 - Steps and Assumptions
A1: Emergency Responce - Steps and Assumptions
A2: Summary | B2: Frequently Asked Questions
A3: The City will use this financial model to calculate Emergency Responce off-site levy rate per hectare that incorporates investment income, capital cost escalations, and the timing of expenditures and developer contributions through the model period. The levy rate calculated ensures that the off-site levy balance at the end of the model period is zero, i.e. revenues have matched expenditures. It also incorporates, if necessary, any interest costs incurred from the use of alternative funding sources required to deliver infrastructure in a timely manner.
A6: Assumptions
A7: Escalation Rate | B7: The escalation factor of 3.58% is a 5-year smoothed average, determined using Non-Residential Building Construction Price Index (CPI) for Calgary.
A8: Discount Rate | B8: The discount rate of 4.29% is based on the asset mix of investments held in The City's capital deposits, and the Long term Capital Market assumptions that The City uses in projecting returns from investment portfolios.
A9: Gross Developable Land | B9: Gross developable lands are calculated starting with the gross land area and deducting non-developable lands.
A10: Unlevied Land | B10: Unlevied land includes all gross developable lands outside the off-site levy Established Area boundary that do not have executed development agreements, as of the end of 2023.
A11: Land Absorption | B11: • All remaining unlevied hectares will sign development agreements within the forecast period (ending 2055). • The land absorption from 2023 to 2027 is based on the fall 2022 forecast by Corporate Economics. • Remaining unlevied hectares in current and future Area Structure Plans are assumed to follow a decreasing trend over the forecast period, on the expectation of higher densities supporting the same number of people.
A12: Benefit Allocation | B12: Benefit calculation considers the land that will benefit from future infrastructure and relates to the forecast residents and jobs in that land.
A13: Payment schedule | B13: This financial model incorporates the current levy payment schedule, where 100% of Emergency Responce levies are paid in year 3 after the development agreement is signed.
A14: Investment income on future value of cash flows | B14: Investment income is earned on the off-site levy beginning account balance, plus collections and minus spending through the year. Investment income on collections and spending is multiplied by a cashflow timing factor of 0.5 to reflect the fact that the timing of collection and spending varies throughout the year. If the balance of the off-site levy goes negative then interest is charged on the balance of the shortfall.
A15: Expenditures | B15: Expenditures include all currently planned infrastructure for the next 32 years. This list may change as better information becomes available.

Sheet Tab 2 - Rate Summary
A1: Emergency Responce - Rate Summary
A2: Proposed 2024 Levy Rate | F2: Figure 1. Off-site Levy rate calculation
B3: The levy rate calculation is being adjusted from the simple formula of Costs x Benefit / Land to the model described in Figure 1 to the right, and in the text below. This financial model uses the following inputs: • Total unlevied land, and annual land absorption. • The off-site levy payment schedule. • Total capital costs of new infrastructure being levied for, with the benefit allocations to determine total unlevied costs. • Annual expenditures. • An escalation factor to calculate the future value of project costs. • A discount factor to calculate the discounted value of project costs, future revenue from developer contributions, and annual investment income or interest expense. The levy rate is then calculated using Excel's Goal Seek function to find the levy rate that balances all expenditures and revenues over the course of the model to result in an off-site levy balance of $0.
B24: Step 1 | C24: Step 2 | D24: Step 3 | E24: Step 4 | F24: Step 5 | G24: Step 6 | H24: Step 7 | I24: Step 8
B25: Total capital costs | C25: Unlevied capital cost | D25: Future value | E25: Discounted value | F25: Unlevied land absorption | G25: Developer contributions | H25: Investment income | I25: Levy rate
B26: Identify the total capital costs for projects that benefit unlevied lands. Details can be found in Tab 4. | C26: Unlevied capital cost: • Apply benefit rates to the capital costs of each project to determine the developer share of costs. | D26: Calculate the future value of capital costs over the model period. Details for this step can be found in Tab 6. | E26: Calculate the discounted value of the capital costs over the model period. Details for this step can be found in Tab 6. | F26: Details on unlevied lands can be found in Tab 3. Remaining unlevied lands are assumed to be fully absorbed within the model period, in the slowly decreasing trend shown on Tab 6. | G26: The levy rate is multiplied by the hectares that are forecast to sign development agreements each year to calculate the yearly contributions from the developers. | H26: The annual investment income is calculated by multiplying the balance of spending and contributions each year by the investment rate of return. | I26: Use Excel's Goal Seek function to calculate the Transportation off-site levy rate which ensures that developer contributions plus investment income are equal to the future value of capital cost/cash outflows by end of the model period.
B27: A | C27: B | D27: C | E27: D | F27: E | G27: F | H27: G | I27: H
B28: =SUM('Tab 4 - Infrastructure'!D12:D19) -> 160250000 | C28: =SUM('Tab 6 - Financial Model'!G14:G21) -> 147430000 | D28: ='Tab 6 - Financial Model'!I25 -> 282789950 | E28: ='Tab 6 - Financial Model'!I26 -> 130858966.4 | F28: ='Tab 6 - Financial Model'!E33 -> 9069 | G28: ='Tab 6 - Financial Model'!I34 -> 306257313.9 | H28: ='Tab 6 - Financial Model'!I40 -> -23467363.9 | I28: ='Tab 6 - Financial Model'!C3 -> 17068.80204
B29: Dollars | C29: Dollars | D29: Dollars | E29: Dollars | F29: Hectares | G29: Dollars | H29: Dollars | I29: Dollars

Sheet No pymt delay model (hidden)
A3: Escalation Rate | B3: 0.0353
A4: Discount | B4: 0.0429
B6: Current Cost | C6: Benefit % | D6: Leviable cost | E6: Year Projected project built | H6: 1 | I6: 2 | J6: 3 | K6: 4 | L6: 5 | M6: 6 | N6: 7 | O6: 8 | P6: 9 | Q6: 10 | R6: 11 | S6: 12 | T6: 13 | U6: 14 | V6: 15 | W6: 16 | X6: 17 | Y6: 18 | Z6: 19 | AA6: 20 | AB6: 21 | AC6: 22 | AD6: 23 | AE6: 24 | AF6: 25 | AG6: 26 | AH6: 27 | AI6: 28 | AJ6: 29 | AK6: 30 | AL6: 31 | AM6: 32 | AN6: 33
H7: 2023 | I7: 2024 | J7: 2025 | K7: 2026 | L7: 2027 | M7: 2028 | N7: 2029 | O7: 2030 | P7: 2031 | Q7: 2032 | R7: 2033 | S7: 2034 | T7: 2035 | U7: 2036 | V7: 2037 | W7: 2038 | X7: 2039 | Y7: 2040 | Z7: 2041 | AA7: 2042 | AB7: 2043 | AC7: 2044 | AD7: 2045 | AE7: 2046 | AF7: 2047 | AG7: 2048 | AH7: 2049 | AI7: 2050 | AJ7: 2051 | AK7: 2052 | AL7: 2053 | AM7: 2054 | AN7: 2055
A8: Belmont Fire Station | B8: 18000000 | C8: 0.7880499738 | D8: =B8*C8 -> 14184899.53 | E8: 4 | H8: =IF($E8=H$6,$D8,0)*(1+$B$3)^H$6 -> 0 | I8: =IF($E8=I$6,$D8,0)*(1+$B$3)^I$6 -> 0 | J8: 0 | K8: =IF($E8=K$6,$D8,0)*(1+$B$3)^K$6 -> 16296379.14 | L8: =IF($E8=L$6,$D8,0)*(1+$B$3)^L$6 -> 0 | M8: 0 | N8: 0 | O8: 0 | P8: 0 | Q8: 0 | R8: 0 | S8: 0 | T8: 0 | U8: 0 | V8: 0 | W8: 0 | X8: 0 | Y8: 0 | Z8: 0 | AA8: 0 | AB8: 0 | AC8: 0 | AD8: 0 | AE8: 0 | AF8: 0 | AG8: 0 | AH8: 0 | AI8: 0 | AJ8: 0 | AK8: 0 | AL8: 0 | AM8: 0 | AN8: 0
A9: Livingstone Fire station | B9: 18000000 | C9: 0.7561401063 | D9: =B9*C9 -> 13610521.91 | E9: 5 | H9: 0 | I9: 0 | J9: 0 | K9: 0 | L9: 16188471.65 | M9: 0 | N9: 0 | O9: 0 | P9: 0 | Q9: 0 | R9: 0 | S9: 0 | T9: 0 | U9: 0 | V9: 0 | W9: 0 | X9: 0 | Y9: 0 | Z9: 0 | AA9: 0 | AB9: 0 | AC9: 0 | AD9: 0 | AE9: 0 | AF9: 0 | AG9: 0 | AH9: 0 | AI9: 0 | AJ9: 0 | AK9: 0 | AL9: 0 | AM9: 0 | AN9: 0
A10: Belvedere Fire Station | B10: 18000000 | C10: 0.9617890687 | D10: 17312203.24 | E10: 6 | H10: 0 | I10: =IF($E10=I$6,$D10,0)*(1+$B$3)^I$6 -> 0 | J10: 0 | K10: 0 | L10: 0 | M10: 21318155.51 | N10: 0 | O10: 0 | P10: 0 | Q10: 0 | R10: 0 | S10: 0 | T10: 0 | U10: 0 | V10: 0 | W10: 0 | X10: 0 | Y10: 0 | Z10: 0 | AA10: 0 | AB10: 0 | AC10: 0 | AD10: 0 | AE10: 0 | AF10: 0 | AG10: 0 | AH10: 0 | AI10: 0 | AJ10: 0 | AK10: 0 | AL10: 0 | AM10: 0 | AN10: 0
A11: Glacier Ridge Fire station | B11: 18000000 | C11: 0.9800918174 | D11: 17641652.71 | E11: 10 | H11: 0 | I11: 0 | J11: 0 | K11: 0 | L11: 0 | M11: 0 | N11: 0 | O11: 0 | P11: 0 | Q11: =IF($E11=Q$6,$D11,0)*(1+$B$3)^Q$6 -> 24957518.9 | R11: 0 | S11: 0 | T11: 0 | U11: 0 | V11: 0 | W11: 0 | X11: 0 | Y11: 0 | Z11: 0 | AA11: 0 | AB11: 0 | AC11: 0 | AD11: 0 | AE11: 0 | AF11: 0 | AG11: 0 | AH11: 0 | AI11: 0 | AJ11: 0 | AK11: 0 | AL11: 0 | AM11: 0 | AN11: 0
A12: Nose Creek Fire Station | B12: 18000000 | C12: 0.9729555758 | D12: 17513200.36 | E12: 10 | H12: 0 | I12: 0 | J12: 0 | K12: 0 | L12: 0 | M12: 0 | N12: 0 | O12: 0 | P12: 0 | Q12: 24775798.28 | R12: 0 | S12: 0 | T12: 0 | U12: 0 | V12: 0 | W12: 0 | X12: 0 | Y12: 0 | Z12: 0 | AA12: 0 | AB12: 0 | AC12: 0 | AD12: 0 | AE12: 0 | AF12: 0 | AG12: 0 | AH12: 0 | AI12: 0 | AJ12: 0 | AK12: 0 | AL12: 0 | AM12: 0 | AN12: 0
A13: Haskayne Fire Station | B13: 18000000 | C13: 0.8235110395 | D13: 14823198.71 | E13: 15 | H13: 0 | I13: 0 | J13: 0 | K13: 0 | L13: 0 | M13: 0 | N13: 0 | O13: 0 | P13: 0 | Q13: 0 | R13: 0 | S13: 0 | T13: 0 | U13: 0 | V13: 24942222.02 | W13: 0 | X13: 0 | Y13: 0 | Z13: 0 | AA13: 0 | AB13: 0 | AC13: 0 | AD13: 0 | AE13: 0 | AF13: 0 | AG13: 0 | AH13: 0 | AI13: 0 | AJ13: 0 | AK13: 0 | AL13: 0 | AM13: 0 | AN13: 0
A14: Providence Fire Station | B14: 18000000 | C14: 0.9653131832 | D14: 17375637.3 | E14: 15 | H14: 0 | I14: 0 | J14: 0 | K14: 0 | L14: 0 | M14: 0 | N14: 0 | O14: 0 | P14: 0 | Q14: 0 | R14: 0 | S14: 0 | T14: 0 | U14: 0 | V14: 29237077.08 | W14: 0 | X14: 0 | Y14: 0 | Z14: 0 | AA14: 0 | AB14: 0 | AC14: 0 | AD14: 0 | AE14: 0 | AF14: 0 | AG14: 0 | AH14: 0 | AI14: 0 | AJ14: 0 | AK14: 0 | AL14: 0 | AM14: 0 | AN14: 0
A15: Rangeview Fire Station | B15: 18000000 | C15: 0.8672100917 | D15: 15609781.65 | E15: 18 | H15: 0 | I15: 0 | J15: 0 | K15: 0 | L15: 0 | M15: 0 | N15: 0 | O15: 0 | P15: 0 | Q15: 0 | R15: 0 | S15: 0 | T15: 0 | U15: 0 | V15: 0 | W15: =IF($E15=W$6,$D15,0)*(1+$B$3)^W$6 -> 0 | X15: 0 | Y15: 29146652.32 | Z15: 0 | AA15: 0 | AB15: 0 | AC15: 0 | AD15: 0 | AE15: 0 | AF15: 0 | AG15: 0 | AH15: 0 | AI15: 0 | AJ15: 0 | AK15: 0 | AL15: 0 | AM15: 0 | AN15: 0
A16: South Shepard Fire Station | B16: 18000000 | C16: 0.9936976559 | D16: 17886557.81 | E16: 20 | H16: 0 | I16: 0 | J16: 0 | K16: 0 | L16: 0 | M16: 0 | N16: 0 | O16: 0 | P16: 0 | Q16: 0 | R16: 0 | S16: 0 | T16: 0 | U16: 0 | V16: 0 | W16: 0 | X16: 0 | Y16: 0 | Z16: 0 | AA16: 35797364.24 | AB16: 0 | AC16: 0 | AD16: 0 | AE16: 0 | AF16: 0 | AG16: 0 | AH16: 0 | AI16: 0 | AJ16: 0 | AK16: 0 | AL16: 0 | AM16: 0 | AN16: 0
A17: Westview Fire Station | B17: 18000000 | C17: 0.9839542019 | D17: 17711175.63 | E17: 20 | H17: 0 | I17: 0 | J17: 0 | K17: 0 | L17: 0 | M17: 0 | N17: 0 | O17: 0 | P17: 0 | Q17: 0 | R17: 0 | S17: 0 | T17: 0 | U17: 0 | V17: 0 | W17: 0 | X17: 0 | Y17: 0 | Z17: 0 | AA17: 35446362.13 | AB17: 0 | AC17: 0 | AD17: 0 | AE17: 0 | AF17: 0 | AG17: 0 | AH17: 0 | AI17: 0 | AJ17: 0 | AK17: 0 | AL17: 0 | AM17: 0 | AN17: 0
A18: Future value of capital projects | E18: =SUM(G18:AN18) -> 258106001.3 | H18: =SUM(H8:H17) -> 0 | I18: 0 | J18: 0 | K18: 16296379.14 | L18: 16188471.65 | M18: 21318155.51 | N18: 0 | O18: 0 | P18: 0 | Q18: 49733317.18 | R18: 0 | S18: 0 | T18: 0 | U18: 0 | V18: 54179299.1 | W18: 0 | X18: 0 | Y18: 29146652.32 | Z18: 0 | AA18: 71243726.36 | AB18: 0 | AC18: 0 | AD18: 0 | AE18: 0 | AF18: 0 | AG18: 0 | AH18: 0 | AI18: 0 | AJ18: 0 | AK18: 0 | AL18: 0 | AM18: 0 | AN18: 0
A19: Dicounted Amount | E19: =SUM(H19:AN19) -> 149432782 | H19: =(SUM(H8:H17))/((1+$B$4)^H6) -> 0 | I19: 0 | J19: 0 | K19: =(SUM(K8:K17))/((1+$B$4)^K6) -> 13775914.87 | L19: 13121772.74 | M19: 16568897.88 | N19: 0 | O19: 0 | P19: 0 | Q19: =(SUM(Q8:Q17))/((1+$B$4)^Q6) -> 32675387.96 | R19: 0 | S19: 0 | T19: 0 | U19: 0 | V19: 28853159.1 | W19: 0 | X19: 0 | Y19: 13684239.49 | Z19: 0 | AA19: 30753409.97 | AB19: 0 | AC19: 0 | AD19: 0 | AE19: 0 | AF19: 0 | AG19: 0 | AH19: 0 | AI19: 0 | AJ19: 0 | AK19: 0 | AL19: 0 | AM19: 0 | AN19: 0
E20: =SUM(H20:AN20) -> 10203 | H20: 361 | I20: 290 | J20: 309 | K20: 327 | L20: 321 | M20: 321 | N20: 321.5 | O20: 321.5 | P20: 321.5 | Q20: 321.5 | R20: 321.5 | S20: 321.5 | T20: 321.5 | U20: 321.5 | V20: 321.5 | W20: 321.5 | X20: 321.5 | Y20: 321.5 | Z20: 321.5 | AA20: 321.5 | AB20: 321.5 | AC20: 321.5 | AD20: 321.5 | AE20: 321.5 | AF20: 321.5 | AG20: 321.5 | AH20: 321.5 | AI20: 321.5 | AJ20: 321.5 | AK20: 321.5 | AL20: 321.5 | AM20: =321.5-85 -> 236.5
E21: =E19/E20 -> 14645.96511 | F21: Contribution | G21: =SUM(H21:AN21) -> 306561959 | H21: =(($E$25*H20)*(1+$B$4)^0) -> 5287193.404 | I21: =(($E$25*I20)*(1+$B$4)^H6) -> 4429540.333 | J21: =(($E$25*J20)*(1+$B$4)^I6) -> 4922228.94 | K21: 5432425.138 | L21: 5561522.485 | M21: 5800111.8 | N21: 6058358.616 | O21: 6318262.2 | P21: 6589315.649 | Q21: 6871997.29 | R21: 7166805.974 | S21: 7474261.95 | T21: 7794907.788 | U21: 8129309.332 | V21: 8478056.702 | W21: 8841765.335 | X21: 9221077.067 | Y21: 9616661.274 | Z21: 10029216.04 | AA21: 10459469.41 | AB21: 10908180.65 | AC21: 11376141.6 | AD21: 11864178.07 | AE21: 12373151.31 | AF21: 12903959.5 | AG21: 13457539.37 | AH21: 14034867.8 | AI21: 14636963.63 | AJ21: 15264889.37 | AK21: 15919753.13 | AL21: 16602710.54 | AM21: 12737137.33 | AN21: 0
F22: Income | G22: =SUM(H22:AN22) -> -48455957.78 | H22: =(F25+H21)*$B$4 -> 226820.597 | I22: =(H25+I21)*$B$4 -> 426578.481 | J22: =(I25+J21)*$B$4 -> 656042.3193 | K22: 917237.5733 | L22: 496061.7146 | M22: 71682.12444 | N22: -579887.9991 | O22: -333711.7459 | P22: -65346.33847 | Q22: 226658.9873 | R22: -1589720.673 | S22: -1337273.852 | T22: -1060241.356 | U22: -756978.34 | V22: -425744.0783 | W22: -2388988.698 | X22: -2095892.107 | Y22: -1773251.109 | Z22: -2669461.598 | AA22: -2335270.263 | AB22: -5023848.268 | AC22: -4751334.884 | AD22: -4446193.912 | AE22: -4106127.439 | AF22: -3728700.444 | AG22: -3311333.254 | AH22: -2851293.622 | AI22: -2345688.378 | AJ22: -1791454.656 | AK22: -1185350.651 | AL22: -523945.912 | AM22: 2.956576645e-09 | AN22: 3.083413783e-09
E25: 14645.96511 | H25: =H21+H22 -> 5514014.001 | I25: =H25+I21+I22-I18 -> 10370132.82 | J25: 15948404.08 | K25: 6001687.646 | L25: =K25+L21+L22-L18 -> -4129199.808 | M25: -19575561.39 | N25: -14097090.78 | O25: -8112540.322 | P25: -1588571.011 | Q25: -44223231.91 | R25: -38646146.61 | S25: -32509158.51 | T25: -25774492.08 | U25: -18402161.09 | V25: -64529147.56 | W25: -58076370.93 | X25: -50951185.96 | Y25: -72254428.12 | Z25: -64894673.67 | AA25: -128014200.9 | AB25: -122129868.5 | AC25: -115505061.8 | AD25: -108087077.6 | AE25: -99820053.76 | AF25: -90644794.7 | AG25: -80498588.59 | AH25: -69315014.41 | AI25: -57023739.15 | AJ25: -43550304.43 | AK25: -28815901.96 | AL25: -12737137.33 | AM25: 7.187444717e-08 | AN25: 7.495786095e-08
F28: Rate/Ha | H28: =H21/H20 -> 14645.96511 | I28: =I21/I20 -> 15274.27701 | J28: 15929.5435 | K28: 16612.92091 | L28: 17325.61522 | M28: 18068.88411 | N28: 18844.03924 | O28: 19652.44852 | P28: 20495.53857 | Q28: 21374.79717 | R28: 22291.77597 | S28: 23248.09316 | T28: 24245.43635 | U28: 25285.56557 | V28: 26370.31634 | W28: 27501.60291 | X28: 28681.42167 | Y28: 29911.85466 | Z28: 31195.07323 | AA28: 32533.34187 | AB28: 33929.02223 | AC28: 35384.57729 | AD28: 36902.57565 | AE28: 38485.69615 | AF28: 40136.73251 | AG28: 41858.59834 | AH28: 43654.33221 | AI28: 45527.10306 | AJ28: 47480.21578 | AK28: 49517.11704 | AL28: 51641.40136 | AM28: 53856.81748
F30: % increase | I30: =(I28-H28)/H28 -> 0.0429 | J30: =(J28-I28)/I28 -> 0.0429 | K30: =(K28-J28)/J28 -> 0.0429 | L30: =(L28-K28)/K28 -> 0.0429

Sheet Tab 3 - Unlevied Land
A1: Emergency Responce - Unlevied Land
A2: This tab provides background on different benefiting areas: the Established Area, unlevied land, and land that has already been levied. | Q2: Map 1. Off-Site levy Established Area boundary and Greenfield Area as of the end of 2022
A5: Map 1 to the right illustrates The City's Established Area, and Greenfield Area. The Established Area boundary was identified in the 2016 Off-site Levy Bylaw and contains lands that are fully developed, or have executed development agreement to allow future development. The purpose of the boundary is to determine benefiting areas in support of levy rate calculations (established or greenfield) for different parts of the city. Land shown in green includes both greenfield lands that have already been levied, unlevied, and non-developable land. Non-developable land is excluded from the determination of the number of hectares that have been levied or unlevied. This includes, for example: • The Transportation Utility Corridor (TUC), or road right-of-way for provincial expressways. • Environmental Reserve (slopes with a grade greater than 15%, natural water bodies, areas impacted by a 1:100 year flood). • Landfills. • Cemeteries.

Sheet Tab 4 - Infrastructure
B1: Emergency Responce - Infrastructure
B3: This tab shows the basis of the calculation and assumptions used in assessing infrastructure allocation.
B5: Per facility capacity | C5: Number of emergency response stations and their location are determined to meet response time requirement of the City.
B6: Capacity allocation | C6: Future greenfield population will be 100% benefitting with existing and future Emergency Responce infrastructure in the green area
B7: Construction year | C7: Determined based on when the new facility will be required as related to the pace of population growth
B9: Future need of facility and cost analysis
B11: Facility | C11: Number of facilities needed | D11: Per facility cost | E11: Year Built - Estimate | F11: Year in numbers
B12: Belvedere Emergency Responce Station | C12: 1 | D12: 27300000 | E12: 2031 | F12: =E12-2024+1 -> 8
B13: Glacier Ridge Emergency Responce station | C13: 1 | D13: 22100000 | E13: 2045 | F13: =E13-2024+1 -> 22
B14: Nose Creek Emergency Responce Station | C14: 1 | D14: 17750000 | E14: 2043 | F14: 20
B15: Providence Emergency Responce Station | C15: 1 | D15: 17750000 | E15: 2040 | F15: 17
B16: Rangeview Emergency Responce Station | C16: 1 | D16: 22100000 | E16: 2037 | F16: 14
B17: South Shepard Emergency Responce Station | C17: 1 | D17: 17750000 | E17: 2033 | F17: 10
B18: West View Emergency Responce Station | C18: 1 | D18: 17750000 | E18: 2048 | F18: 25
B19: Shepard Industrial Station | C19: 1 | D19: 17750000 | E19: 2053 | F19: 30
B21: Emergency Responce Infrastructure Cost Estimates, 2023
B22: 2 Bay Station | D22: Cost | E22: Notes
B23: Building Construction | D23: =1100*13000 -> 14300000 | E23: 13000 square feet
B24: Land (Serviced) | D24: =1300000*1.5 -> 1950000 | E24: 1.5 Acres
B25: Apparatus | D25: 1100000
B26: Equipment | D26: 400000
B27: Total Costs | D27: =SUM(D23:D26) -> 17750000
B29: 3 Bay Station | D29: Cost | E29: Notes
B30: Building Construction | D30: =1100*15000 -> 16500000 | E30: 15000 square feet
B31: Land (Serviced) | D31: =1300000*2 -> 2600000 | E31: 2 Acres
B32: Two Apparatus | D32: 2200000
B33: Equipment | D33: 800000
B34: Total Costs | D34: =SUM(D30:D33) -> 22100000
B36: 4 Bay Station | D36: Cost | E36: Notes
B37: Building Construction | D37: =1100*17500 -> 19250000 | E37: 17500 square feet
B38: Land (Serviced) | D38: =1300000*2.5 -> 3250000 | E38: 2.5 Acres
B39: Three Apparatus | D39: 3600000
B40: Equipment | D40: =400000*3 -> 1200000
B41: Total Costs | D41: =SUM(D37:D40) -> 27300000

Sheet Tab 5 - Benefit Allocation
A1: Emergency Responce - Benefit Allocation
A3: Benefit measurement: | B3: Emergency response facilities benefit is measured using the share of population in benefiting areas.
A4: Benefiting Areas include: | B4: Greenfield only: projects that support Area Structure Plans (ASPs) outside the established area boundary. The service level for the greenfield is comparable with the service level in the established area. 100% of benefit is assigned to the greenfield ASP lands, and is split based on the forecast population in lands that have already signed development agreements and paid off-site levies (levied lands), and lands that have not yet signed development agreements and paid off-site levies (unlevied lands).
A5: Data Source: | B5: Source: Calgary Next 20: Population, Employment and Housing Projections, 2021, by Applications Management Consulting Ltd. A buildout forecast of population based on current growth trends.
A6: Source Data Details and Assumptions | B6: • The forecast period ends in 2058. • Population and job forecasts are assessed by Transportation Zones (TZs). Transportation Zones provide a useful and reasonable geographic division for forecasting. • Population densities are assumed to be even throughout TZs. (e.g. where part of a TZ has paid levies, and part has not).
A7: Benefit Allocation Calculation | B7: Benefit = (Sum of forecast population and jobs in all unlevied lands within future emergency response station coverage area/ (Sum of forecast population and jobs in the coverage area of emergency response station)
A13: # | B13: Project Name / Greenfield Emergency Responce Stations | C13: Primary Benefitting Area (by Planning Policy) | D13: Future Population/Jobs (Dispersed/full build out in 60 years) | E13: Previously Levied Land | G13: Unlevied Land (ASP)
E14: Population | F14: % | G14: Population | H14: % | I14: Weight of Unlevied Land Population | J14: % x Weight
A15: 1 | B15: Belvedere Emergency Responce Station | C15: Belvedere ASP | D15: 67208.30648 | E15: 3221.708197 | F15: =ROUND(E15/D15,2) -> 0.05 | G15: 63986.59828 | H15: =ROUND(G15/D15,2) -> 0.95 | I15: =G15/$G$23 -> 0.2404088693 | J15: =H15*I15 -> 0.2283884258
A16: 2 | B16: Glacier Ridge Emergency Responce Station | C16: Glacier Ridge ASP | D16: 55420.3137 | E16: ='[1]Glacier Ridge'!D7 -> 0 | F16: =ROUND(E16/D16,2) -> 0 | G16: 52735.60697 | H16: =ROUND(G16/D16,2) -> 0.95 | I16: =G16/$G$23 -> 0.1981369222 | J16: =H16*I16 -> 0.1882300761
A17: 3 | B17: Nose Creek Emergency Responce Station | C17: Nose Creek ASP / Keystone Hills ASP | D17: 24442.44759 | E17: 239.7778313 | F17: 0.01 | G17: 24202.66976 | H17: 0.99 | I17: 0.09093367405 | J17: 0.09002433731
A18: 4 | B18: Providence Emergency Responce Station | C18: Providence ASP | D18: 41086.661 | E18: 3052.069188 | F18: 0.07 | G18: 38034.59181 | H18: 0.93 | I18: 0.1429026305 | J18: 0.1328994464
A19: 5 | B19: Rangeview Emergency Responce Station | C19: Rangeview ASP / Ricardo Ranch ASP | D19: 61487.01541 | E19: 12290.91785 | F19: 0.2 | G19: 49196.09756 | H19: 0.8 | I19: 0.1848383647 | J19: 0.1478706918
A20: 6 | B20: South Shepard Emergency Responce Station | C20: South Shepard ASP | D20: 29088.02867 | E20: 872.2900264 | F20: =ROUND(E20/D20,2) -> 0.03 | G20: 28215.73864 | H20: 0.97 | I20: 0.1060114775 | J20: 0.1028311332
A21: 7 | B21: West View Emergency Responce Station | C21: West View ASP | D21: 5397.45028 | E21: 27.68685863 | F21: 0.01 | G21: 5369.763421 | H21: 0.99 | I21: 0.02017514272 | J21: 0.01997339129
A22: 8 | B22: Shepard Industrial Station | C22: Shepard Industrial ASP | D22: 5575.664137 | E22: 1159.336049 | F22: 0.21 | G22: 4416.328088 | H22: 0.79 | I22: 0.016592919 | J22: 0.01310840601
A23: Total | D23: =SUM(D15:D22) -> 289705.8873 | E23: =SUM(E15:E22) -> 20863.786 | G23: =SUM(G15:G22) -> 266157.3945 | I23: Weighted Average Benefit %: | J23: =ROUND(SUM(J15:J22),2) -> 0.92

Sheet Tab 6 - Financial Model
A1: Emergency Responce OSL Financial Rate Model
J2: 0 | K2: 1 | L2: 2 | M2: 3 | N2: 4 | O2: 5 | P2: 6 | Q2: 7 | R2: 8 | S2: 9 | T2: 10 | U2: 11 | V2: 12 | W2: 13 | X2: 14 | Y2: 15 | Z2: 16 | AA2: 17 | AB2: 18 | AC2: 19 | AD2: 20 | AE2: 21 | AF2: 22 | AG2: 23 | AH2: 24 | AI2: 25 | AJ2: 26 | AK2: 27 | AL2: 28 | AM2: 29 | AN2: 30 | AO2: 31 | AP2: 32 | AQ2: 33 | AR2: 34 | AS2: 35
A3: Emergency Responce Levy Rate | C3: 17068.80204 | H3: End Value (CELL AS42): | I3: =AS42 -> -2.002343535e-08 | J3: 2023 | K3: 2024 | L3: 2025 | M3: 2026 | N3: 2027 | O3: 2028 | P3: 2029 | Q3: 2030 | R3: 2031 | S3: 2032 | T3: 2033 | U3: 2034 | V3: 2035 | W3: 2036 | X3: 2037 | Y3: 2038 | Z3: 2039 | AA3: 2040 | AB3: 2041 | AC3: 2042 | AD3: 2043 | AE3: 2044 | AF3: 2045 | AG3: 2046 | AH3: 2047 | AI3: 2048 | AJ3: 2049 | AK3: 2050 | AL3: 2051 | AM3: 2052 | AN3: 2053 | AO3: 2054 | AP3: 2055 | AQ3: 2056 | AR3: 2057 | AS3: 2058
B4: How to calculate the levy rate: Once all variables have been set, the levy rate can be recalculated by entering running Excel's Goal Seek function (Data --> What-If Analysis --> Goal Seek) to calculate the levy rate in cell C3 by setting cell AS42 to 0 by changing the levy rate in cell C3. The model applies the value in cell C3 to the land absorption in row 29 to ensure that contributions from Development Agreements (in row 34) plus earned investment income offset total spending and ensure that the ending balance is zero (cell AS42), i.e. all revenues and spending have balanced. Variables impacting this calculation include: annual expenditures, land absorption rate (row 29), payment schedule (cells I36 to I39), and the escalation and discount rates (cells E25 and E26).
A10: Section 1: Expenditures
A12: # | B12: Project Name | D12: Capital Cost | E12: Benefit Type | F12: Benefit % | G12: Unlevied cost | H12: Previously Levied/ City Share of Cost | I12: Year Projected project start
A14: 1 | B14: ='Tab 4 - Infrastructure'!B12 -> Belvedere Emergency Responce Station | D14: ='Tab 4 - Infrastructure'!D12 -> 27300000 | E14: Greenfield | F14: ='Tab 5 - Benefit Allocation'!$J$23 -> 0.92 | G14: =D14*F14 -> 25116000 | H14: =D14-G14 -> 2184000 | I14: ='Tab 4 - Infrastructure'!F12 -> 8 | K14: =IF($I14=K$2,$G14,0)*(1+$E$25)^K$2 -> 0 | L14: 0 | M14: 0 | N14: 0 | O14: 0 | P14: 0 | Q14: 0 | R14: 33278039.11 | S14: 0 | T14: 0 | U14: =IF($I14=U$2,$G14,0)*(1+$E$25)^U$2 -> 0 | V14: 0 | W14: 0 | X14: 0 | Y14: 0 | Z14: 0 | AA14: 0 | AB14: 0 | AC14: 0 | AD14: 0 | AE14: =IF($I14=AE$2,$G14,0)*(1+$E$25)^AE$2 -> 0 | AF14: 0 | AG14: 0 | AH14: 0 | AI14: 0 | AJ14: 0 | AK14: 0 | AL14: 0 | AM14: 0 | AN14: 0 | AO14: 0 | AP14: 0 | AQ14: 0 | AR14: 0 | AS14: 0
A15: 2 | B15: ='Tab 4 - Infrastructure'!B13 -> Glacier Ridge Emergency Responce station | D15: ='Tab 4 - Infrastructure'!D13 -> 22100000 | E15: Greenfield | F15: ='Tab 5 - Benefit Allocation'!$J$23 -> 0.92 | G15: 20332000 | H15: 1768000 | I15: ='Tab 4 - Infrastructure'!F13 -> 22 | K15: 0 | L15: 0 | M15: 0 | N15: 0 | O15: 0 | P15: 0 | Q15: 0 | R15: 0 | S15: 0 | T15: 0 | U15: 0 | V15: 0 | W15: 0 | X15: 0 | Y15: 0 | Z15: 0 | AA15: 0 | AB15: 0 | AC15: 0 | AD15: 0 | AE15: 0 | AF15: 44080858.9 | AG15: 0 | AH15: 0 | AI15: 0 | AJ15: 0 | AK15: 0 | AL15: 0 | AM15: 0 | AN15: 0 | AO15: 0 | AP15: 0 | AQ15: 0 | AR15: 0 | AS15: 0
A16: 3 | B16: ='Tab 4 - Infrastructure'!B14 -> Nose Creek Emergency Responce Station | D16: ='Tab 4 - Infrastructure'!D14 -> 17750000 | E16: Greenfield | F16: ='Tab 5 - Benefit Allocation'!$J$23 -> 0.92 | G16: 16330000 | H16: 1420000 | I16: ='Tab 4 - Infrastructure'!F14 -> 20 | K16: 0 | L16: 0 | M16: 0 | N16: 0 | O16: 0 | P16: 0 | Q16: 0 | R16: 0 | S16: 0 | T16: 0 | U16: 0 | V16: 0 | W16: 0 | X16: 0 | Y16: 0 | Z16: 0 | AA16: 0 | AB16: 0 | AC16: 0 | AD16: 32999268.92 | AE16: 0 | AF16: 0 | AG16: 0 | AH16: 0 | AI16: 0 | AJ16: 0 | AK16: 0 | AL16: 0 | AM16: 0 | AN16: 0 | AO16: 0 | AP16: 0 | AQ16: 0 | AR16: 0 | AS16: 0
A17: 4 | B17: ='Tab 4 - Infrastructure'!B15 -> Providence Emergency Responce Station | D17: ='Tab 4 - Infrastructure'!D15 -> 17750000 | E17: Greenfield | F17: ='Tab 5 - Benefit Allocation'!$J$23 -> 0.92 | G17: 16330000 | H17: 1420000 | I17: ='Tab 4 - Infrastructure'!F15 -> 17 | K17: 0 | L17: 0 | M17: 0 | N17: 0 | O17: 0 | P17: 0 | Q17: 0 | R17: 0 | S17: 0 | T17: 0 | U17: 0 | V17: 0 | W17: 0 | X17: 0 | Y17: 0 | Z17: 0 | AA17: 29694539.75 | AB17: 0 | AC17: 0 | AD17: 0 | AE17: 0 | AF17: 0 | AG17: 0 | AH17: 0 | AI17: 0 | AJ17: 0 | AK17: 0 | AL17: 0 | AM17: 0 | AN17: 0 | AO17: 0 | AP17: 0 | AQ17: 0 | AR17: 0 | AS17: 0
A18: 5 | B18: ='Tab 4 - Infrastructure'!B16 -> Rangeview Emergency Responce Station | D18: ='Tab 4 - Infrastructure'!D16 -> 22100000 | E18: Greenfield | F18: ='Tab 5 - Benefit Allocation'!$J$23 -> 0.92 | G18: 20332000 | H18: 1768000 | I18: ='Tab 4 - Infrastructure'!F16 -> 14 | K18: 0 | L18: 0 | M18: 0 | N18: 0 | O18: 0 | P18: 0 | Q18: 0 | R18: 0 | S18: 0 | T18: 0 | U18: 0 | V18: 0 | W18: 0 | X18: 33269233.46 | Y18: 0 | Z18: 0 | AA18: 0 | AB18: 0 | AC18: 0 | AD18: 0 | AE18: 0 | AF18: 0 | AG18: 0 | AH18: 0 | AI18: 0 | AJ18: 0 | AK18: 0 | AL18: 0 | AM18: 0 | AN18: 0 | AO18: 0 | AP18: 0 | AQ18: 0 | AR18: 0 | AS18: 0
A19: 6 | B19: ='Tab 4 - Infrastructure'!B17 -> South Shepard Emergency Responce Station | D19: ='Tab 4 - Infrastructure'!D17 -> 17750000 | E19: Greenfield | F19: ='Tab 5 - Benefit Allocation'!$J$23 -> 0.92 | G19: 16330000 | H19: 1420000 | I19: ='Tab 4 - Infrastructure'!F17 -> 10 | K19: 0 | L19: 0 | M19: 0 | N19: 0 | O19: 0 | P19: 0 | Q19: 0 | R19: 0 | S19: 0 | T19: 23213747.25 | U19: 0 | V19: 0 | W19: 0 | X19: 0 | Y19: 0 | Z19: 0 | AA19: 0 | AB19: 0 | AC19: 0 | AD19: 0 | AE19: 0 | AF19: 0 | AG19: 0 | AH19: 0 | AI19: 0 | AJ19: 0 | AK19: 0 | AL19: 0 | AM19: 0 | AN19: 0 | AO19: 0 | AP19: 0 | AQ19: 0 | AR19: 0 | AS19: 0
A20: 7 | B20: ='Tab 4 - Infrastructure'!B18 -> West View Emergency Responce Station | D20: ='Tab 4 - Infrastructure'!D18 -> 17750000 | E20: Greenfield | F20: ='Tab 5 - Benefit Allocation'!$J$23 -> 0.92 | G20: 16330000 | H20: 1420000 | I20: ='Tab 4 - Infrastructure'!F18 -> 25 | K20: 0 | L20: 0 | M20: 0 | N20: 0 | O20: 0 | P20: 0 | Q20: 0 | R20: 0 | S20: 0 | T20: 0 | U20: 0 | V20: 0 | W20: 0 | X20: 0 | Y20: 0 | Z20: 0 | AA20: 0 | AB20: 0 | AC20: 0 | AD20: 0 | AE20: 0 | AF20: 0 | AG20: 0 | AH20: 0 | AI20: 39344483.8 | AJ20: 0 | AK20: 0 | AL20: 0 | AM20: 0 | AN20: 0 | AO20: 0 | AP20: 0 | AQ20: 0 | AR20: 0 | AS20: 0
A21: 8 | B21: ='Tab 4 - Infrastructure'!B19 -> Shepard Industrial Station | D21: ='Tab 4 - Infrastructure'!D19 -> 17750000 | E21: Greenfield | F21: ='Tab 5 - Benefit Allocation'!$J$23 -> 0.92 | G21: 16330000 | H21: 1420000 | I21: ='Tab 4 - Infrastructure'!F19 -> 30 | K21: 0 | L21: 0 | M21: 0 | N21: 0 | O21: 0 | P21: 0 | Q21: 0 | R21: 0 | S21: 0 | T21: 0 | U21: 0 | V21: 0 | W21: 0 | X21: 0 | Y21: 0 | Z21: 0 | AA21: 0 | AB21: 0 | AC21: 0 | AD21: 0 | AE21: 0 | AF21: 0 | AG21: 0 | AH21: 0 | AI21: 0 | AJ21: 0 | AK21: 0 | AL21: 0 | AM21: 0 | AN21: 46909778.81 | AO21: 0 | AP21: 0 | AQ21: 0 | AR21: 0 | AS21: 0
B23: Total | D23: =SUM(D14:D21) -> 160250000 | G23: =SUM(G14:G21) -> 147430000 | H23: =SUM(H14:H21) -> 12820000
B24: Rates used to calculate Future Value and Present Value of Unlevied Cost:
B25: Table: Escalation and Discount Rates. Source: City Treasury, March 2023 | D25: Escalation Rate | E25: 0.0358 | H25: Future value of Unlevied Cost | I25: =SUM(L25:AS25) -> 282789950 | J25: =SUM(J14:J22) -> 0 | K25: 0 | L25: 0 | M25: 0 | N25: 0 | O25: 0 | P25: 0 | Q25: 0 | R25: 33278039.11 | S25: 0 | T25: 23213747.25 | U25: 0 | V25: 0 | W25: 0 | X25: 33269233.46 | Y25: 0 | Z25: 0 | AA25: 29694539.75 | AB25: 0 | AC25: 0 | AD25: 32999268.92 | AE25: 0 | AF25: 44080858.9 | AG25: 0 | AH25: 0 | AI25: 39344483.8 | AJ25: 0 | AK25: 0 | AL25: 0 | AM25: 0 | AN25: 46909778.81 | AO25: 0 | AP25: 0 | AQ25: 0 | AR25: 0 | AS25: 0
D26: Discount Rate | E26: 0.0429 | H26: Discounted value of Unlevied Cost | I26: =SUM(L26:AS26) -> 130858966.4 | J26: =(SUM(J14:J22))/((1+$E$26)^J2) -> 0 | K26: 0 | L26: 0 | M26: 0 | N26: 0 | O26: 0 | P26: 0 | Q26: 0 | R26: 23780248.48 | S26: 0 | T26: 15251711.34 | U26: 0 | V26: 0 | W26: 0 | X26: 18477595.27 | Y26: 0 | Z26: 0 | AA26: 14539559.58 | AB26: 0 | AC26: 0 | AD26: 14244623.31 | AE26: 0 | AF26: 17494895.95 | AG26: 0 | AH26: 0 | AI26: 13766297.96 | AJ26: 0 | AK26: 0 | AL26: 0 | AM26: 0 | AN26: 13304034.47 | AO26: 0 | AP26: 0 | AQ26: 0 | AR26: 0 | AS26: 0
A28: Section 2: Land Absorption and Yearly Cash Flows
I29: Hectares that sign development agreements (DA's) | J29: 290 | K29: 309 | L29: 327 | M29: 321 | N29: 321 | O29: 318.480898 | P29: 315.9617959 | Q29: 313.4426939 | R29: 310.9235918 | S29: 308.4044898 | T29: 305.8853878 | U29: 303.3662857 | V29: 300.8471837 | W29: 298.3280816 | X29: 295.8089796 | Y29: 293.2898776 | Z29: 290.7707755 | AA29: 288.2516735 | AB29: 285.7325714 | AC29: 283.2134694 | AD29: 280.6943673 | AE29: 278.1752653 | AF29: 275.6561633 | AG29: 273.1370612 | AH29: 270.6179592 | AI29: 268.0988571 | AJ29: 265.5797551 | AK29: 263.0606531 | AL29: =260.541551020408-34.8 -> 225.741551 | AM29: =258.022448979592-34.8 -> 223.222449 | AN29: =255.503346938775-34.8 -> 220.7033469 | AO29: =252.984244897959-34.8 -> 218.1842449 | AP29: =250.465142857143-34.8 -> 215.6651429
D30: Year | E30: Unlevied Hectares | I30: Cumulative Hectares | K30: =SUM($K29:K29) -> 309 | L30: =SUM($K29:L29) -> 636 | M30: =SUM($K29:M29) -> 957 | N30: =SUM($K29:N29) -> 1278 | O30: =SUM($K29:O29) -> 1596.480898 | P30: =SUM($K29:P29) -> 1912.442694 | Q30: =SUM($K29:Q29) -> 2225.885388 | R30: =SUM($K29:R29) -> 2536.80898 | S30: =SUM($K29:S29) -> 2845.213469 | T30: =SUM($K29:T29) -> 3151.098857 | U30: =SUM($K29:U29) -> 3454.465143 | V30: =SUM($K29:V29) -> 3755.312327 | W30: =SUM($K29:W29) -> 4053.640408 | X30: =SUM($K29:X29) -> 4349.449388 | Y30: =SUM($K29:Y29) -> 4642.739265 | Z30: =SUM($K29:Z29) -> 4933.510041 | AA30: =SUM($K29:AA29) -> 5221.761714 | AB30: =SUM($K29:AB29) -> 5507.494286 | AC30: =SUM($K29:AC29) -> 5790.707755 | AD30: =SUM($K29:AD29) -> 6071.402122 | AE30: =SUM($K29:AE29) -> 6349.577388 | AF30: =SUM($K29:AF29) -> 6625.233551 | AG30: =SUM($K29:AG29) -> 6898.370612 | AH30: =SUM($K29:AH29) -> 7168.988571 | AI30: =SUM($K29:AI29) -> 7437.087429 | AJ30: =SUM($K29:AJ29) -> 7702.667184 | AK30: =SUM($K29:AK29) -> 7965.727837 | AL30: =SUM($K29:AL29) -> 8191.469388 | AM30: =SUM($K29:AM29) -> 8414.691837 | AN30: =SUM($K29:AN29) -> 8635.395184 | AO30: =SUM($K29:AO29) -> 8853.579429 | AP30: =SUM($K29:AP29) -> 9069.244571 | AQ30: =SUM($K29:AQ29) -> 9069.244571 | AR30: =SUM($K29:AR29) -> 9069.244571 | AS30: =SUM($K29:AS29) -> 9069.244571
B31: Planned Unlevied Hectares at Jan 1, 2023 | D31: Subtotal | E31: =9069+290 -> 9359
B32: Forecast hectares in executed DA's | D32: 2023 | E32: 290
B33: Denominator: Unlevied Hectares at Jan 1, 2024 | D33: Subtotal | E33: =E31-E32 -> 9069 | G33: Yearly Cash-flow Analysis ($):
B34: Hectares in executed DAs from 2023 to 2027 are per Corporate Economics Fall 2022 forecast. The remaining 7,791 hectares of unlevied land are assumed to be absorbed in a slowly decreasing trend, with approximately 2.54 ha fewer per year. This starts from 318.5 hectares in 2028 and finishes with 216 hectares in 2055. | D34: 2024 | E34: 309 | H34: Contributions from signed DA's | I34: =SUM(K34:AS34) -> 306257313.9 | K34: =(($C$3*K29)*(1+$E$26)^J2) -> 5274259.831 | L34: 5820944.544 | M34: 5959274.752 | N34: 6214927.638 | O34: 6430682.985 | P34: 6653512.125 | Q34: 6883624.912 | R34: 7121236.185 | S34: 7366565.814 | T34: 7619838.731 | U34: 7881284.963 | V34: 8151139.654 | W34: 8429643.081 | X34: 8717040.664 | Y34: 9013582.96 | Z34: 9319525.657 | AA34: 9635129.548 | AB34: 9960660.505 | AC34: 10296389.43 | AD34: 10642592.2 | AE34: 10999549.58 | AF34: 11367547.18 | AG34: 11746875.29 | AH34: 12137828.8 | AI34: 12540707.06 | AJ34: 12955813.69 | AK34: 13383456.43 | AL34: 11977510.7 | AM34: 12351952.1 | AN34: 12736477.04 | AO34: 13131261.57 | AP34: 13536478.26 | AQ34: 0 | AR34: 0 | AS34: 0
D35: 2025 | E35: 327 | H35: Beginning Account Balance, $ | K35: =J42 -> 0 | L35: 0 | M35: 0 | N35: 0 | O35: 5387392.705 | P35: 11564315.66 | Q35: 18147525.99 | R35: 25274292.69 | S35: -1064672.066 | T35: 5685883.462 | U35: -10750595.6 | V35: -3937809.45 | W35: 3417837.176 | X35: 11347746.66 | Y35: -14097954.99 | Z35: -6376775.665 | AA35: 1960119.584 | AB35: -19383257.73 | AC35: -11007875.17 | AD35: -1960683.531 | AE35: -25910097.01 | AF35: -16847323.5 | AG35: -52079220.02 | AH35: -43442542.76 | AI35: -34070737.92 | AJ35: -64109414.5 | AK35: -54860862.61 | AL35: -44816208.39 | AM35: -33929118.5 | AN35: -22150961.78 | AO35: -57346700.04 | AP35: -47572445.16 | AQ35: -36996401.58 | AR35: -25573872.73 | AS35: =AR42 -> -13258064.75
D36: 2026 & 2027 | E36: 321 | G36: Levy payment schedule after a DA is signed. | H36: Year 0 | I36: 0 | K36: =K34*$I$36 -> 0 | L36: 0 | M36: 0 | N36: 0 | O36: 0 | P36: 0 | Q36: 0 | R36: 0 | S36: 0 | T36: 0 | U36: 0 | V36: 0 | W36: 0 | X36: 0 | Y36: 0 | Z36: 0 | AA36: 0 | AB36: 0 | AC36: 0 | AD36: 0 | AE36: 0 | AF36: 0 | AG36: 0 | AH36: 0 | AI36: 0 | AJ36: 0 | AK36: 0 | AL36: 0 | AM36: 0 | AN36: 0 | AO36: 0 | AP36: 0 | AQ36: 0 | AR36: 0 | AS36: 0
D37: 2028 - 2055 | E37: Declining | H37: Year 1 | I37: 0 | L37: =K34*$I$37 -> 0 | M37: 0 | N37: 0 | O37: 0 | P37: 0 | Q37: 0 | R37: 0 | S37: 0 | T37: 0 | U37: 0 | V37: 0 | W37: 0 | X37: 0 | Y37: 0 | Z37: 0 | AA37: 0 | AB37: 0 | AC37: 0 | AD37: 0 | AE37: 0 | AF37: 0 | AG37: 0 | AH37: 0 | AI37: 0 | AJ37: 0 | AK37: 0 | AL37: 0 | AM37: 0 | AN37: 0 | AO37: 0 | AP37: 0 | AQ37: 0 | AR37: 0 | AS37: 0
H38: Year 2 | I38: 0 | M38: =K34*$I$38 -> 0 | N38: 0 | O38: 0 | P38: 0 | Q38: 0 | R38: 0 | S38: 0 | T38: 0 | U38: 0 | V38: 0 | W38: 0 | X38: 0 | Y38: 0 | Z38: 0 | AA38: 0 | AB38: 0 | AC38: 0 | AD38: 0 | AE38: 0 | AF38: 0 | AG38: 0 | AH38: 0 | AI38: 0 | AJ38: 0 | AK38: 0 | AL38: 0 | AM38: 0 | AN38: 0 | AO38: 0 | AP38: 0 | AQ38: 0 | AR38: 0 | AS38: 0
H39: Year 3 | I39: 1 | N39: =K34*$I$39 -> 5274259.831 | O39: 5820944.544 | P39: 5959274.752 | Q39: 6214927.638 | R39: 6430682.985 | S39: 6653512.125 | T39: 6883624.912 | U39: 7121236.185 | V39: 7366565.814 | W39: 7619838.731 | X39: 7881284.963 | Y39: 8151139.654 | Z39: 8429643.081 | AA39: 8717040.664 | AB39: 9013582.96 | AC39: 9319525.657 | AD39: 9635129.548 | AE39: 9960660.505 | AF39: 10296389.43 | AG39: 10642592.2 | AH39: 10999549.58 | AI39: 11367547.18 | AJ39: 11746875.29 | AK39: 12137828.8 | AL39: 12540707.06 | AM39: 12955813.69 | AN39: 13383456.43 | AO39: 11977510.7 | AP39: 12351952.1 | AQ39: 12736477.04 | AR39: 13131261.57 | AS39: 13536478.26
H40: Investment Income (Interest Expense), $ | I40: =SUM(K40:AS40) -> -23467363.9 | M40: =(((M35+((M36+M37+M38+M39)*$E$48)))-(M25*0.5))*$E$26 -> 0 | N40: =(((N35+((N36+N37+N38+N39)*$E$48)))-(N25*0.5))*$E$26 -> 113132.8734 | O40: 355978.4075 | P40: 623935.5851 | Q40: 911839.0629 | R40: 508391.3676 | S40: 97043.40345 | T40: -106356.7236 | U40: -308450.0351 | V40: -10919.18867 | W40: 310070.7556 | X40: -57753.16337 | Y40: -429960.3237 | Z40: -92747.83194 | AA40: -365878.2252 | AB40: -638200.402 | AC40: -272334.0194 | AD40: -585274.1129 | AE40: -897886.9939 | AF40: -1447427.048 | AG40: -2005914.936 | AH40: -1627744.746 | AI40: -2061739.948 | AJ40: -2498323.407 | AK40: -2093174.578 | AL40: -1653617.173 | AM40: -1177656.98 | AN40: -1669415.876 | AO40: -2203255.827 | AP40: -1775908.525 | AQ40: -1313948.195 | AR40: -815453.5797 | AS40: -278413.5188
H41: Future value of cash inflows, $ | I41: =SUM(I34:I40) -> 282789951
H42: Ending account balance, $ | M42: =M35+M36+M37+M38+M39+M40-M25 -> 0 | N42: 5387392.705 | O42: 11564315.66 | P42: 18147525.99 | Q42: 25274292.69 | R42: -1064672.066 | S42: 5685883.462 | T42: -10750595.6 | U42: -3937809.45 | V42: 3417837.176 | W42: 11347746.66 | X42: -14097954.99 | Y42: -6376775.665 | Z42: 1960119.584 | AA42: -19383257.73 | AB42: -11007875.17 | AC42: -1960683.531 | AD42: -25910097.01 | AE42: -16847323.5 | AF42: -52079220.02 | AG42: -43442542.76 | AH42: -34070737.92 | AI42: -64109414.5 | AJ42: -54860862.61 | AK42: -44816208.39 | AL42: -33929118.5 | AM42: -22150961.78 | AN42: -57346700.04 | AO42: -47572445.16 | AP42: -36996401.58 | AQ42: -25573872.73 | AR42: -13258064.75 | AS42: =AS35+AS36+AS37+AS38+AS39+AS40-AS25 -> -2.002343535e-08
B45: Note: Cash flow timing is for inflows, 1=beginning of year; 0.5 is straight line; 0.0 is end of year. This is used to calculate investment income on expenditures within a given year.
B48: Cashflow Timing Factor | E48: 0.5
A50: End of WP

Sheet Tab 7 - Bylaw Continuity
A1: Emergency Responce OSL Continuity
A3: This sheet is for information purposes only. It shows the continuity of expenditures, developer contributions, investment income, and fund balances for both the 2016 and 2024 Off-site Levies bylaws. Any final investment income earned in the final year will be applied to expenditures in that year.
A6: Light green references the 2016 bylaw
A7: Light orange references the 2024 bylaw
A9: 2024 Levy Rate | D9: Year # | H9: 0 | I9: 1 | J9: 2 | K9: 3 | L9: 4 | M9: 5 | N9: 6 | O9: 7 | P9: 8 | Q9: 9 | R9: 10 | S9: 11 | T9: 12 | U9: 13 | V9: 14 | W9: 15 | X9: 16 | Y9: 17 | Z9: 18 | AA9: 19 | AB9: 20 | AC9: 21 | AD9: 22 | AE9: 23 | AF9: 24 | AG9: 25 | AH9: 26 | AI9: 27 | AJ9: 28 | AK9: 29 | AL9: 30 | AM9: 31 | AN9: 32 | AO9: 33 | AP9: 34 | AQ9: 35
A10: ='Tab 6 - Financial Model'!C3 -> 17068.80204 | D10: Year | E10: 2020 | F10: 2021 | G10: 2022 | H10: 2023 | I10: 2024 | J10: 2025 | K10: 2026 | L10: 2027 | M10: 2028 | N10: 2029 | O10: 2030 | P10: 2031 | Q10: 2032 | R10: 2033 | S10: 2034 | T10: 2035 | U10: 2036 | V10: 2037 | W10: 2038 | X10: 2039 | Y10: 2040 | Z10: 2041 | AA10: 2042 | AB10: 2043 | AC10: 2044 | AD10: 2045 | AE10: 2046 | AF10: 2047 | AG10: 2048 | AH10: 2049 | AI10: 2050 | AJ10: 2051 | AK10: 2052 | AL10: 2053 | AM10: 2054 | AN10: 2055 | AO10: 2056 | AP10: 2057 | AQ10: 2058
A12: Expenditures ($)
A13: Supports projects in progress. | B13: Committed/Future OSL Expenditures (2016 Bylaw) | H13: 21905626 | I13: 22962727 | J13: 16268586 | K13: 6012101 | L13: =(17750000-17000000)*(1+'Tab 6 - Financial Model'!$E$25)^'Tab 7 - Bylaw Continuity'!L9 -> 863306.2601 | O13: =17750000*(1+'Tab 6 - Financial Model'!$E$25)^'Tab 7 - Bylaw Continuity'!O9 -> 22705428.59 | P13: =(22100000-3500000)*(1+'Tab 6 - Financial Model'!$E$25)^P9 -> 24644510.57
A15: 1 | B15: ='Tab 6 - Financial Model'!B14 -> Belvedere Emergency Responce Station | D15: ='Tab 6 - Financial Model'!I14 -> 8 | E15: =IF(AND($D15=E$9,$B15='Tab 6 - Financial Model'!$B14),('Tab 6 - Financial Model'!$D14*(1+'Tab 6 - Financial Model'!$E$25)^'Tab 7 - Bylaw Continuity'!E$9),0) -> 0 | F15: =IF(AND($D15=F$9,$B15='Tab 6 - Financial Model'!$B14),('Tab 6 - Financial Model'!$D14*(1+'Tab 6 - Financial Model'!$E$25)^'Tab 7 - Bylaw Continuity'!F$9),0) -> 0 | G15: =IF(AND($D15=G$9,$B15='Tab 6 - Financial Model'!$B14),('Tab 6 - Financial Model'!$D14*(1+'Tab 6 - Financial Model'!$E$25)^'Tab 7 - Bylaw Continuity'!G$9),0) -> 0 | H15: =IF(AND($D15=H$9,$B15='Tab 6 - Financial Model'!$B14),('Tab 6 - Financial Model'!$D14*(1+'Tab 6 - Financial Model'!$E$25)^'Tab 7 - Bylaw Continuity'!H$9),0) -> 0 | I15: =IF(AND($D15=I$9,$B15='Tab 6 - Financial Model'!$B14),('Tab 6 - Financial Model'!$D14*(1+'Tab 6 - Financial Model'!$E$25)^'Tab 7 - Bylaw Continuity'!I$9),0) -> 0 | J15: =IF(AND($D15=J$9,$B15='Tab 6 - Financial Model'!$B14),('Tab 6 - Financial Model'!$D14*(1+'Tab 6 - Financial Model'!$E$25)^'Tab 7 - Bylaw Continuity'!J$9),0) -> 0 | K15: =IF(AND($D15=K$9,$B15='Tab 6 - Financial Model'!$B14),('Tab 6 - Financial Model'!$D14*(1+'Tab 6 - Financial Model'!$E$25)^'Tab 7 - Bylaw Continuity'!K$9),0) -> 0 | L15: =IF(AND($D15=L$9,$B15='Tab 6 - Financial Model'!$B14),('Tab 6 - Financial Model'!$D14*(1+'Tab 6 - Financial Model'!$E$25)^'Tab 7 - Bylaw Continuity'!L$9),0) -> 0 | M15: =IF(AND($D15=M$9,$B15='Tab 6 - Financial Model'!$B14),('Tab 6 - Financial Model'!$D14*(1+'Tab 6 - Financial Model'!$E$25)^'Tab 7 - Bylaw Continuity'!M$9),0) -> 0 | N15: =IF(AND($D15=N$9,$B15='Tab 6 - Financial Model'!$B14),('Tab 6 - Financial Model'!$D14*(1+'Tab 6 - Financial Model'!$E$25)^'Tab 7 - Bylaw Continuity'!N$9),0) -> 0 | O15: =IF(AND($D15=O$9,$B15='Tab 6 - Financial Model'!$B14),('Tab 6 - Financial Model'!$D14*(1+'Tab 6 - Financial Model'!$E$25)^'Tab 7 - Bylaw Continuity'!O$9),0) -> 0 | P15: =IF(AND($D15=P$9,$B15='Tab 6 - Financial Model'!$B14),('Tab 6 - Financial Model'!$D14*(1+'Tab 6 - Financial Model'!$E$25)^'Tab 7 - Bylaw Continuity'!P$9),0) -> 36171781.64 | Q15: =IF(AND($D15=Q$9,$B15='Tab 6 - Financial Model'!$B14),('Tab 6 - Financial Model'!$D14*(1+'Tab 6 - Financial Model'!$E$25)^'Tab 7 - Bylaw Continuity'!Q$9),0) -> 0 | R15: =IF(AND($D15=R$9,$B15='Tab 6 - Financial Model'!$B14),('Tab 6 - Financial Model'!$D14*(1+'Tab 6 - Financial Model'!$E$25)^'Tab 7 - Bylaw Continuity'!R$9),0) -> 0 | S15: =IF(AND($D15=S$9,$B15='Tab 6 - Financial Model'!$B14),('Tab 6 - Financial Model'!$D14*(1+'Tab 6 - Financial Model'!$E$25)^'Tab 7 - Bylaw Continuity'!S$9),0) -> 0 | T15: =IF(AND($D15=T$9,$B15='Tab 6 - Financial Model'!$B14),('Tab 6 - Financial Model'!$D14*(1+'Tab 6 - Financial Model'!$E$25)^'Tab 7 - Bylaw Continuity'!T$9),0) -> 0 | U15: =IF(AND($D15=U$9,$B15='Tab 6 - Financial Model'!$B14),('Tab 6 - Financial Model'!$D14*(1+'Tab 6 - Financial Model'!$E$25)^'Tab 7 - Bylaw Continuity'!U$9),0) -> 0 | V15: =IF(AND($D15=V$9,$B15='Tab 6 - Financial Model'!$B14),('Tab 6 - Financial Model'!$D14*(1+'Tab 6 - Financial Model'!$E$25)^'Tab 7 - Bylaw Continuity'!V$9),0) -> 0 | W15: =IF(AND($D15=W$9,$B15='Tab 6 - Financial Model'!$B14),('Tab 6 - Financial Model'!$D14*(1+'Tab 6 - Financial Model'!$E$25)^'Tab 7 - Bylaw Continuity'!W$9),0) -> 0 | X15: =IF(AND($D15=X$9,$B15='Tab 6 - Financial Model'!$B14),('Tab 6 - Financial Model'!$D14*(1+'Tab 6 - Financial Model'!$E$25)^'Tab 7 - Bylaw Continuity'!X$9),0) -> 0 | Y15: =IF(AND($D15=Y$9,$B15='Tab 6 - Financial Model'!$B14),('Tab 6 - Financial Model'!$D14*(1+'Tab 6 - Financial Model'!$E$25)^'Tab 7 - Bylaw Continuity'!Y$9),0) -> 0 | Z15: =IF(AND($D15=Z$9,$B15='Tab 6 - Financial Model'!$B14),('Tab 6 - Financial Model'!$D14*(1+'Tab 6 - Financial Model'!$E$25)^'Tab 7 - Bylaw Continuity'!Z$9),0) -> 0 | AA15: =IF(AND($D15=AA$9,$B15='Tab 6 - Financial Model'!$B14),('Tab 6 - Financial Model'!$D14*(1+'Tab 6 - Financial Model'!$E$25)^'Tab 7 - Bylaw Continuity'!AA$9),0) -> 0 | AB15: =IF(AND($D15=AB$9,$B15='Tab 6 - Financial Model'!$B14),('Tab 6 - Financial Model'!$D14*(1+'Tab 6 - Financial Model'!$E$25)^'Tab 7 - Bylaw Continuity'!AB$9),0) -> 0 | AC15: =IF(AND($D15=AC$9,$B15='Tab 6 - Financial Model'!$B14),('Tab 6 - Financial Model'!$D14*(1+'Tab 6 - Financial Model'!$E$25)^'Tab 7 - Bylaw Continuity'!AC$9),0) -> 0 | AD15: =IF(AND($D15=AD$9,$B15='Tab 6 - Financial Model'!$B14),('Tab 6 - Financial Model'!$D14*(1+'Tab 6 - Financial Model'!$E$25)^'Tab 7 - Bylaw Continuity'!AD$9),0) -> 0 | AE15: =IF(AND($D15=AE$9,$B15='Tab 6 - Financial Model'!$B14),('Tab 6 - Financial Model'!$D14*(1+'Tab 6 - Financial Model'!$E$25)^'Tab 7 - Bylaw Continuity'!AE$9),0) -> 0 | AF15: =IF(AND($D15=AF$9,$B15='Tab 6 - Financial Model'!$B14),('Tab 6 - Financial Model'!$D14*(1+'Tab 6 - Financial Model'!$E$25)^'Tab 7 - Bylaw Continuity'!AF$9),0) -> 0 | AG15: =IF(AND($D15=AG$9,$B15='Tab 6 - Financial Model'!$B14),('Tab 6 - Financial Model'!$D14*(1+'Tab 6 - Financial Model'!$E$25)^'Tab 7 - Bylaw Continuity'!AG$9),0) -> 0 | AH15: =IF(AND($D15=AH$9,$B15='Tab 6 - Financial Model'!$B14),('Tab 6 - Financial Model'!$D14*(1+'Tab 6 - Financial Model'!$E$25)^'Tab 7 - Bylaw Continuity'!AH$9),0) -> 0 | AI15: =IF(AND($D15=AI$9,$B15='Tab 6 - Financial Model'!$B14),('Tab 6 - Financial Model'!$D14*(1+'Tab 6 - Financial Model'!$E$25)^'Tab 7 - Bylaw Continuity'!AI$9),0) -> 0 | AJ15: =IF(AND($D15=AJ$9,$B15='Tab 6 - Financial Model'!$B14),('Tab 6 - Financial Model'!$D14*(1+'Tab 6 - Financial Model'!$E$25)^'Tab 7 - Bylaw Continuity'!AJ$9),0) -> 0 | AK15: =IF(AND($D15=AK$9,$B15='Tab 6 - Financial Model'!$B14),('Tab 6 - Financial Model'!$D14*(1+'Tab 6 - Financial Model'!$E$25)^'Tab 7 - Bylaw Continuity'!AK$9),0) -> 0 | AL15: =IF(AND($D15=AL$9,$B15='Tab 6 - Financial Model'!$B14),('Tab 6 - Financial Model'!$D14*(1+'Tab 6 - Financial Model'!$E$25)^'Tab 7 - Bylaw Continuity'!AL$9),0) -> 0 | AM15: =IF(AND($D15=AM$9,$B15='Tab 6 - Financial Model'!$B14),('Tab 6 - Financial Model'!$D14*(1+'Tab 6 - Financial Model'!$E$25)^'Tab 7 - Bylaw Continuity'!AM$9),0) -> 0 | AN15: =IF(AND($D15=AN$9,$B15='Tab 6 - Financial Model'!$B14),('Tab 6 - Financial Model'!$D14*(1+'Tab 6 - Financial Model'!$E$25)^'Tab 7 - Bylaw Continuity'!AN$9),0) -> 0 | AO15: =IF(AND($D15=AO$9,$B15='Tab 6 - Financial Model'!$B14),('Tab 6 - Financial Model'!$D14*(1+'Tab 6 - Financial Model'!$E$25)^'Tab 7 - Bylaw Continuity'!AO$9),0) -> 0 | AP15: =IF(AND($D15=AP$9,$B15='Tab 6 - Financial Model'!$B14),('Tab 6 - Financial Model'!$D14*(1+'Tab 6 - Financial Model'!$E$25)^'Tab 7 - Bylaw Continuity'!AP$9),0) -> 0 | AQ15: =IF(AND($D15=AQ$9,$B15='Tab 6 - Financial Model'!$B14),('Tab 6 - Financial Model'!$D14*(1+'Tab 6 - Financial Model'!$E$25)^'Tab 7 - Bylaw Continuity'!AQ$9),0) -> 0
B16: Expenditures from 2024 Bylaw | D16: =SUMIF('Tab 6 - Financial Model'!$B$14:$B$21,'Tab 7 - Bylaw Continuity'!B15,'Tab 6 - Financial Model'!$F$14:$F$21) -> 0.92 | E16: =E15*$D16 -> 0 | F16: =F15*$D16 -> 0 | G16: 0 | H16: 0 | I16: 0 | J16: 0 | K16: 0 | L16: 0 | M16: 0 | N16: 0 | O16: 0 | P16: 33278039.11 | Q16: 0 | R16: 0 | S16: 0 | T16: 0 | U16: 0 | V16: 0 | W16: 0 | X16: 0 | Y16: 0 | Z16: 0 | AA16: 0 | AB16: 0 | AC16: 0 | AD16: 0 | AE16: 0 | AF16: 0 | AG16: 0 | AH16: 0 | AI16: 0 | AJ16: 0 | AK16: 0 | AL16: 0 | AM16: 0 | AN16: 0 | AO16: 0 | AP16: 0 | AQ16: 0
B17: Remainder: needed from other sources | E17: =E15-E16 -> 0 | F17: =F15-F16 -> 0 | G17: 0 | H17: 0 | I17: 0 | J17: 0 | K17: 0 | L17: 0 | M17: 0 | N17: 0 | O17: 0 | P17: 2893742.532 | Q17: 0 | R17: 0 | S17: 0 | T17: 0 | U17: 0 | V17: 0 | W17: 0 | X17: 0 | Y17: 0 | Z17: 0 | AA17: 0 | AB17: 0 | AC17: 0 | AD17: 0 | AE17: 0 | AF17: 0 | AG17: 0 | AH17: 0 | AI17: 0 | AJ17: 0 | AK17: 0 | AL17: 0 | AM17: 0 | AN17: 0 | AO17: 0 | AP17: 0 | AQ17: 0
A18: 2 | B18: ='Tab 6 - Financial Model'!B15 -> Glacier Ridge Emergency Responce station | D18: ='Tab 6 - Financial Model'!I15 -> 22 | E18: =IF(AND($D18=E$9,$B18='Tab 6 - Financial Model'!$B15),('Tab 6 - Financial Model'!$D15*(1+'Tab 6 - Financial Model'!$E$25)^'Tab 7 - Bylaw Continuity'!E$9),0) -> 0 | F18: =IF(AND($D18=F$9,$B18='Tab 6 - Financial Model'!$B15),('Tab 6 - Financial Model'!$D15*(1+'Tab 6 - Financial Model'!$E$25)^'Tab 7 - Bylaw Continuity'!F$9),0) -> 0 | G18: =IF(AND($D18=G$9,$B18='Tab 6 - Financial Model'!$B15),('Tab 6 - Financial Model'!$D15*(1+'Tab 6 - Financial Model'!$E$25)^'Tab 7 - Bylaw Continuity'!G$9),0) -> 0 | H18: =IF(AND($D18=H$9,$B18='Tab 6 - Financial Model'!$B15),('Tab 6 - Financial Model'!$D15*(1+'Tab 6 - Financial Model'!$E$25)^'Tab 7 - Bylaw Continuity'!H$9),0) -> 0 | I18: =IF(AND($D18=I$9,$B18='Tab 6 - Financial Model'!$B15),('Tab 6 - Financial Model'!$D15*(1+'Tab 6 - Financial Model'!$E$25)^'Tab 7 - Bylaw Continuity'!I$9),0) -> 0 | J18: =IF(AND($D18=J$9,$B18='Tab 6 - Financial Model'!$B15),('Tab 6 - Financial Model'!$D15*(1+'Tab 6 - Financial Model'!$E$25)^'Tab 7 - Bylaw Continuity'!J$9),0) -> 0 | K18: =IF(AND($D18=K$9,$B18='Tab 6 - Financial Model'!$B15),('Tab 6 - Financial Model'!$D15*(1+'Tab 6 - Financial Model'!$E$25)^'Tab 7 - Bylaw Continuity'!K$9),0) -> 0 | L18: =IF(AND($D18=L$9,$B18='Tab 6 - Financial Model'!$B15),('Tab 6 - Financial Model'!$D15*(1+'Tab 6 - Financial Model'!$E$25)^'Tab 7 - Bylaw Continuity'!L$9),0) -> 0 | M18: =IF(AND($D18=M$9,$B18='Tab 6 - Financial Model'!$B15),('Tab 6 - Financial Model'!$D15*(1+'Tab 6 - Financial Model'!$E$25)^'Tab 7 - Bylaw Continuity'!M$9),0) -> 0 | N18: =IF(AND($D18=N$9,$B18='Tab 6 - Financial Model'!$B15),('Tab 6 - Financial Model'!$D15*(1+'Tab 6 - Financial Model'!$E$25)^'Tab 7 - Bylaw Continuity'!N$9),0) -> 0 | O18: =IF(AND($D18=O$9,$B18='Tab 6 - Financial Model'!$B15),('Tab 6 - Financial Model'!$D15*(1+'Tab 6 - Financial Model'!$E$25)^'Tab 7 - Bylaw Continuity'!O$9),0) -> 0 | P18: =IF(AND($D18=P$9,$B18='Tab 6 - Financial Model'!$B15),('Tab 6 - Financial Model'!$D15*(1+'Tab 6 - Financial Model'!$E$25)^'Tab 7 - Bylaw Continuity'!P$9),0) -> 0 | Q18: =IF(AND($D18=Q$9,$B18='Tab 6 - Financial Model'!$B15),('Tab 6 - Financial Model'!$D15*(1+'Tab 6 - Financial Model'!$E$25)^'Tab 7 - Bylaw Continuity'!Q$9),0) -> 0 | R18: =IF(AND($D18=R$9,$B18='Tab 6 - Financial Model'!$B15),('Tab 6 - Financial Model'!$D15*(1+'Tab 6 - Financial Model'!$E$25)^'Tab 7 - Bylaw Continuity'!R$9),0) -> 0 | S18: =IF(AND($D18=S$9,$B18='Tab 6 - Financial Model'!$B15),('Tab 6 - Financial Model'!$D15*(1+'Tab 6 - Financial Model'!$E$25)^'Tab 7 - Bylaw Continuity'!S$9),0) -> 0 | T18: =IF(AND($D18=T$9,$B18='Tab 6 - Financial Model'!$B15),('Tab 6 - Financial Model'!$D15*(1+'Tab 6 - Financial Model'!$E$25)^'Tab 7 - Bylaw Continuity'!T$9),0) -> 0 | U18: =IF(AND($D18=U$9,$B18='Tab 6 - Financial Model'!$B15),('Tab 6 - Financial Model'!$D15*(1+'Tab 6 - Financial Model'!$E$25)^'Tab 7 - Bylaw Continuity'!U$9),0) -> 0 | V18: =IF(AND($D18=V$9,$B18='Tab 6 - Financial Model'!$B15),('Tab 6 - Financial Model'!$D15*(1+'Tab 6 - Financial Model'!$E$25)^'Tab 7 - Bylaw Continuity'!V$9),0) -> 0 | W18: =IF(AND($D18=W$9,$B18='Tab 6 - Financial Model'!$B15),('Tab 6 - Financial Model'!$D15*(1+'Tab 6 - Financial Model'!$E$25)^'Tab 7 - Bylaw Continuity'!W$9),0) -> 0 | X18: =IF(AND($D18=X$9,$B18='Tab 6 - Financial Model'!$B15),('Tab 6 - Financial Model'!$D15*(1+'Tab 6 - Financial Model'!$E$25)^'Tab 7 - Bylaw Continuity'!X$9),0) -> 0 | Y18: =IF(AND($D18=Y$9,$B18='Tab 6 - Financial Model'!$B15),('Tab 6 - Financial Model'!$D15*(1+'Tab 6 - Financial Model'!$E$25)^'Tab 7 - Bylaw Continuity'!Y$9),0) -> 0 | Z18: =IF(AND($D18=Z$9,$B18='Tab 6 - Financial Model'!$B15),('Tab 6 - Financial Model'!$D15*(1+'Tab 6 - Financial Model'!$E$25)^'Tab 7 - Bylaw Continuity'!Z$9),0) -> 0 | AA18: =IF(AND($D18=AA$9,$B18='Tab 6 - Financial Model'!$B15),('Tab 6 - Financial Model'!$D15*(1+'Tab 6 - Financial Model'!$E$25)^'Tab 7 - Bylaw Continuity'!AA$9),0) -> 0 | AB18: =IF(AND($D18=AB$9,$B18='Tab 6 - Financial Model'!$B15),('Tab 6 - Financial Model'!$D15*(1+'Tab 6 - Financial Model'!$E$25)^'Tab 7 - Bylaw Continuity'!AB$9),0) -> 0 | AC18: =IF(AND($D18=AC$9,$B18='Tab 6 - Financial Model'!$B15),('Tab 6 - Financial Model'!$D15*(1+'Tab 6 - Financial Model'!$E$25)^'Tab 7 - Bylaw Continuity'!AC$9),0) -> 0 | AD18: =IF(AND($D18=AD$9,$B18='Tab 6 - Financial Model'!$B15),('Tab 6 - Financial Model'!$D15*(1+'Tab 6 - Financial Model'!$E$25)^'Tab 7 - Bylaw Continuity'!AD$9),0) -> 47913977.07 | AE18: =IF(AND($D18=AE$9,$B18='Tab 6 - Financial Model'!$B15),('Tab 6 - Financial Model'!$D15*(1+'Tab 6 - Financial Model'!$E$25)^'Tab 7 - Bylaw Continuity'!AE$9),0) -> 0 | AF18: =IF(AND($D18=AF$9,$B18='Tab 6 - Financial Model'!$B15),('Tab 6 - Financial Model'!$D15*(1+'Tab 6 - Financial Model'!$E$25)^'Tab 7 - Bylaw Continuity'!AF$9),0) -> 0 | AG18: =IF(AND($D18=AG$9,$B18='Tab 6 - Financial Model'!$B15),('Tab 6 - Financial Model'!$D15*(1+'Tab 6 - Financial Model'!$E$25)^'Tab 7 - Bylaw Continuity'!AG$9),0) -> 0 | AH18: =IF(AND($D18=AH$9,$B18='Tab 6 - Financial Model'!$B15),('Tab 6 - Financial Model'!$D15*(1+'Tab 6 - Financial Model'!$E$25)^'Tab 7 - Bylaw Continuity'!AH$9),0) -> 0 | AI18: =IF(AND($D18=AI$9,$B18='Tab 6 - Financial Model'!$B15),('Tab 6 - Financial Model'!$D15*(1+'Tab 6 - Financial Model'!$E$25)^'Tab 7 - Bylaw Continuity'!AI$9),0) -> 0 | AJ18: =IF(AND($D18=AJ$9,$B18='Tab 6 - Financial Model'!$B15),('Tab 6 - Financial Model'!$D15*(1+'Tab 6 - Financial Model'!$E$25)^'Tab 7 - Bylaw Continuity'!AJ$9),0) -> 0 | AK18: =IF(AND($D18=AK$9,$B18='Tab 6 - Financial Model'!$B15),('Tab 6 - Financial Model'!$D15*(1+'Tab 6 - Financial Model'!$E$25)^'Tab 7 - Bylaw Continuity'!AK$9),0) -> 0 | AL18: =IF(AND($D18=AL$9,$B18='Tab 6 - Financial Model'!$B15),('Tab 6 - Financial Model'!$D15*(1+'Tab 6 - Financial Model'!$E$25)^'Tab 7 - Bylaw Continuity'!AL$9),0) -> 0 | AM18: =IF(AND($D18=AM$9,$B18='Tab 6 - Financial Model'!$B15),('Tab 6 - Financial Model'!$D15*(1+'Tab 6 - Financial Model'!$E$25)^'Tab 7 - Bylaw Continuity'!AM$9),0) -> 0 | AN18: =IF(AND($D18=AN$9,$B18='Tab 6 - Financial Model'!$B15),('Tab 6 - Financial Model'!$D15*(1+'Tab 6 - Financial Model'!$E$25)^'Tab 7 - Bylaw Continuity'!AN$9),0) -> 0 | AO18: =IF(AND($D18=AO$9,$B18='Tab 6 - Financial Model'!$B15),('Tab 6 - Financial Model'!$D15*(1+'Tab 6 - Financial Model'!$E$25)^'Tab 7 - Bylaw Continuity'!AO$9),0) -> 0 | AP18: =IF(AND($D18=AP$9,$B18='Tab 6 - Financial Model'!$B15),('Tab 6 - Financial Model'!$D15*(1+'Tab 6 - Financial Model'!$E$25)^'Tab 7 - Bylaw Continuity'!AP$9),0) -> 0 | AQ18: =IF(AND($D18=AQ$9,$B18='Tab 6 - Financial Model'!$B15),('Tab 6 - Financial Model'!$D15*(1+'Tab 6 - Financial Model'!$E$25)^'Tab 7 - Bylaw Continuity'!AQ$9),0) -> 0
B19: Expenditures from 2024 Bylaw | D19: =SUMIF('Tab 6 - Financial Model'!$B$14:$B$21,'Tab 7 - Bylaw Continuity'!B18,'Tab 6 - Financial Model'!$F$14:$F$21) -> 0.92 | E19: =E18*$D19 -> 0 | F19: =F18*$D19 -> 0 | G19: 0 | H19: 0 | I19: 0 | J19: 0 | K19: 0 | L19: 0 | M19: 0 | N19: 0 | O19: 0 | P19: 0 | Q19: 0 | R19: 0 | S19: 0 | T19: 0 | U19: 0 | V19: 0 | W19: 0 | X19: 0 | Y19: 0 | Z19: 0 | AA19: 0 | AB19: 0 | AC19: 0 | AD19: 44080858.9 | AE19: 0 | AF19: 0 | AG19: 0 | AH19: 0 | AI19: 0 | AJ19: 0 | AK19: 0 | AL19: 0 | AM19: 0 | AN19: 0 | AO19: 0 | AP19: 0 | AQ19: 0
B20: Remainder: needed from other sources | E20: =E18-E19 -> 0 | F20: =F18-F19 -> 0 | G20: 0 | H20: 0 | I20: 0 | J20: 0 | K20: 0 | L20: 0 | M20: 0 | N20: 0 | O20: 0 | P20: 0 | Q20: 0 | R20: 0 | S20: 0 | T20: 0 | U20: 0 | V20: 0 | W20: 0 | X20: 0 | Y20: 0 | Z20: 0 | AA20: 0 | AB20: 0 | AC20: 0 | AD20: 3833118.165 | AE20: 0 | AF20: 0 | AG20: 0 | AH20: 0 | AI20: 0 | AJ20: 0 | AK20: 0 | AL20: 0 | AM20: 0 | AN20: 0 | AO20: 0 | AP20: 0 | AQ20: 0
A21: 3 | B21: ='Tab 6 - Financial Model'!B16 -> Nose Creek Emergency Responce Station | D21: ='Tab 6 - Financial Model'!I16 -> 20 | E21: =IF(AND($D21=E$9,$B21='Tab 6 - Financial Model'!$B16),('Tab 6 - Financial Model'!$D16*(1+'Tab 6 - Financial Model'!$E$25)^'Tab 7 - Bylaw Continuity'!E$9),0) -> 0 | F21: =IF(AND($D21=F$9,$B21='Tab 6 - Financial Model'!$B16),('Tab 6 - Financial Model'!$D16*(1+'Tab 6 - Financial Model'!$E$25)^'Tab 7 - Bylaw Continuity'!F$9),0) -> 0 | G21: =IF(AND($D21=G$9,$B21='Tab 6 - Financial Model'!$B16),('Tab 6 - Financial Model'!$D16*(1+'Tab 6 - Financial Model'!$E$25)^'Tab 7 - Bylaw Continuity'!G$9),0) -> 0 | H21: =IF(AND($D21=H$9,$B21='Tab 6 - Financial Model'!$B16),('Tab 6 - Financial Model'!$D16*(1+'Tab 6 - Financial Model'!$E$25)^'Tab 7 - Bylaw Continuity'!H$9),0) -> 0 | I21: =IF(AND($D21=I$9,$B21='Tab 6 - Financial Model'!$B16),('Tab 6 - Financial Model'!$D16*(1+'Tab 6 - Financial Model'!$E$25)^'Tab 7 - Bylaw Continuity'!I$9),0) -> 0 | J21: =IF(AND($D21=J$9,$B21='Tab 6 - Financial Model'!$B16),('Tab 6 - Financial Model'!$D16*(1+'Tab 6 - Financial Model'!$E$25)^'Tab 7 - Bylaw Continuity'!J$9),0) -> 0 | K21: =IF(AND($D21=K$9,$B21='Tab 6 - Financial Model'!$B16),('Tab 6 - Financial Model'!$D16*(1+'Tab 6 - Financial Model'!$E$25)^'Tab 7 - Bylaw Continuity'!K$9),0) -> 0 | L21: =IF(AND($D21=L$9,$B21='Tab 6 - Financial Model'!$B16),('Tab 6 - Financial Model'!$D16*(1+'Tab 6 - Financial Model'!$E$25)^'Tab 7 - Bylaw Continuity'!L$9),0) -> 0 | M21: =IF(AND($D21=M$9,$B21='Tab 6 - Financial Model'!$B16),('Tab 6 - Financial Model'!$D16*(1+'Tab 6 - Financial Model'!$E$25)^'Tab 7 - Bylaw Continuity'!M$9),0) -> 0 | N21: =IF(AND($D21=N$9,$B21='Tab 6 - Financial Model'!$B16),('Tab 6 - Financial Model'!$D16*(1+'Tab 6 - Financial Model'!$E$25)^'Tab 7 - Bylaw Continuity'!N$9),0) -> 0 | O21: =IF(AND($D21=O$9,$B21='Tab 6 - Financial Model'!$B16),('Tab 6 - Financial Model'!$D16*(1+'Tab 6 - Financial Model'!$E$25)^'Tab 7 - Bylaw Continuity'!O$9),0) -> 0 | P21: =IF(AND($D21=P$9,$B21='Tab 6 - Financial Model'!$B16),('Tab 6 - Financial Model'!$D16*(1+'Tab 6 - Financial Model'!$E$25)^'Tab 7 - Bylaw Continuity'!P$9),0) -> 0 | Q21: =IF(AND($D21=Q$9,$B21='Tab 6 - Financial Model'!$B16),('Tab 6 - Financial Model'!$D16*(1+'Tab 6 - Financial Model'!$E$25)^'Tab 7 - Bylaw Continuity'!Q$9),0) -> 0 | R21: =IF(AND($D21=R$9,$B21='Tab 6 - Financial Model'!$B16),('Tab 6 - Financial Model'!$D16*(1+'Tab 6 - Financial Model'!$E$25)^'Tab 7 - Bylaw Continuity'!R$9),0) -> 0 | S21: =IF(AND($D21=S$9,$B21='Tab 6 - Financial Model'!$B16),('Tab 6 - Financial Model'!$D16*(1+'Tab 6 - Financial Model'!$E$25)^'Tab 7 - Bylaw Continuity'!S$9),0) -> 0 | T21: =IF(AND($D21=T$9,$B21='Tab 6 - Financial Model'!$B16),('Tab 6 - Financial Model'!$D16*(1+'Tab 6 - Financial Model'!$E$25)^'Tab 7 - Bylaw Continuity'!T$9),0) -> 0 | U21: =IF(AND($D21=U$9,$B21='Tab 6 - Financial Model'!$B16),('Tab 6 - Financial Model'!$D16*(1+'Tab 6 - Financial Model'!$E$25)^'Tab 7 - Bylaw Continuity'!U$9),0) -> 0 | V21: =IF(AND($D21=V$9,$B21='Tab 6 - Financial Model'!$B16),('Tab 6 - Financial Model'!$D16*(1+'Tab 6 - Financial Model'!$E$25)^'Tab 7 - Bylaw Continuity'!V$9),0) -> 0 | W21: =IF(AND($D21=W$9,$B21='Tab 6 - Financial Model'!$B16),('Tab 6 - Financial Model'!$D16*(1+'Tab 6 - Financial Model'!$E$25)^'Tab 7 - Bylaw Continuity'!W$9),0) -> 0 | X21: =IF(AND($D21=X$9,$B21='Tab 6 - Financial Model'!$B16),('Tab 6 - Financial Model'!$D16*(1+'Tab 6 - Financial Model'!$E$25)^'Tab 7 - Bylaw Continuity'!X$9),0) -> 0 | Y21: =IF(AND($D21=Y$9,$B21='Tab 6 - Financial Model'!$B16),('Tab 6 - Financial Model'!$D16*(1+'Tab 6 - Financial Model'!$E$25)^'Tab 7 - Bylaw Continuity'!Y$9),0) -> 0 | Z21: =IF(AND($D21=Z$9,$B21='Tab 6 - Financial Model'!$B16),('Tab 6 - Financial Model'!$D16*(1+'Tab 6 - Financial Model'!$E$25)^'Tab 7 - Bylaw Continuity'!Z$9),0) -> 0 | AA21: =IF(AND($D21=AA$9,$B21='Tab 6 - Financial Model'!$B16),('Tab 6 - Financial Model'!$D16*(1+'Tab 6 - Financial Model'!$E$25)^'Tab 7 - Bylaw Continuity'!AA$9),0) -> 0 | AB21: =IF(AND($D21=AB$9,$B21='Tab 6 - Financial Model'!$B16),('Tab 6 - Financial Model'!$D16*(1+'Tab 6 - Financial Model'!$E$25)^'Tab 7 - Bylaw Continuity'!AB$9),0) -> 35868770.56 | AC21: =IF(AND($D21=AC$9,$B21='Tab 6 - Financial Model'!$B16),('Tab 6 - Financial Model'!$D16*(1+'Tab 6 - Financial Model'!$E$25)^'Tab 7 - Bylaw Continuity'!AC$9),0) -> 0 | AD21: =IF(AND($D21=AD$9,$B21='Tab 6 - Financial Model'!$B16),('Tab 6 - Financial Model'!$D16*(1+'Tab 6 - Financial Model'!$E$25)^'Tab 7 - Bylaw Continuity'!AD$9),0) -> 0 | AE21: =IF(AND($D21=AE$9,$B21='Tab 6 - Financial Model'!$B16),('Tab 6 - Financial Model'!$D16*(1+'Tab 6 - Financial Model'!$E$25)^'Tab 7 - Bylaw Continuity'!AE$9),0) -> 0 | AF21: =IF(AND($D21=AF$9,$B21='Tab 6 - Financial Model'!$B16),('Tab 6 - Financial Model'!$D16*(1+'Tab 6 - Financial Model'!$E$25)^'Tab 7 - Bylaw Continuity'!AF$9),0) -> 0 | AG21: =IF(AND($D21=AG$9,$B21='Tab 6 - Financial Model'!$B16),('Tab 6 - Financial Model'!$D16*(1+'Tab 6 - Financial Model'!$E$25)^'Tab 7 - Bylaw Continuity'!AG$9),0) -> 0 | AH21: =IF(AND($D21=AH$9,$B21='Tab 6 - Financial Model'!$B16),('Tab 6 - Financial Model'!$D16*(1+'Tab 6 - Financial Model'!$E$25)^'Tab 7 - Bylaw Continuity'!AH$9),0) -> 0 | AI21: =IF(AND($D21=AI$9,$B21='Tab 6 - Financial Model'!$B16),('Tab 6 - Financial Model'!$D16*(1+'Tab 6 - Financial Model'!$E$25)^'Tab 7 - Bylaw Continuity'!AI$9),0) -> 0 | AJ21: =IF(AND($D21=AJ$9,$B21='Tab 6 - Financial Model'!$B16),('Tab 6 - Financial Model'!$D16*(1+'Tab 6 - Financial Model'!$E$25)^'Tab 7 - Bylaw Continuity'!AJ$9),0) -> 0 | AK21: =IF(AND($D21=AK$9,$B21='Tab 6 - Financial Model'!$B16),('Tab 6 - Financial Model'!$D16*(1+'Tab 6 - Financial Model'!$E$25)^'Tab 7 - Bylaw Continuity'!AK$9),0) -> 0 | AL21: =IF(AND($D21=AL$9,$B21='Tab 6 - Financial Model'!$B16),('Tab 6 - Financial Model'!$D16*(1+'Tab 6 - Financial Model'!$E$25)^'Tab 7 - Bylaw Continuity'!AL$9),0) -> 0 | AM21: =IF(AND($D21=AM$9,$B21='Tab 6 - Financial Model'!$B16),('Tab 6 - Financial Model'!$D16*(1+'Tab 6 - Financial Model'!$E$25)^'Tab 7 - Bylaw Continuity'!AM$9),0) -> 0 | AN21: =IF(AND($D21=AN$9,$B21='Tab 6 - Financial Model'!$B16),('Tab 6 - Financial Model'!$D16*(1+'Tab 6 - Financial Model'!$E$25)^'Tab 7 - Bylaw Continuity'!AN$9),0) -> 0 | AO21: =IF(AND($D21=AO$9,$B21='Tab 6 - Financial Model'!$B16),('Tab 6 - Financial Model'!$D16*(1+'Tab 6 - Financial Model'!$E$25)^'Tab 7 - Bylaw Continuity'!AO$9),0) -> 0 | AP21: =IF(AND($D21=AP$9,$B21='Tab 6 - Financial Model'!$B16),('Tab 6 - Financial Model'!$D16*(1+'Tab 6 - Financial Model'!$E$25)^'Tab 7 - Bylaw Continuity'!AP$9),0) -> 0 | AQ21: =IF(AND($D21=AQ$9,$B21='Tab 6 - Financial Model'!$B16),('Tab 6 - Financial Model'!$D16*(1+'Tab 6 - Financial Model'!$E$25)^'Tab 7 - Bylaw Continuity'!AQ$9),0) -> 0
B22: Expenditures from 2024 Bylaw | D22: =SUMIF('Tab 6 - Financial Model'!$B$14:$B$21,'Tab 7 - Bylaw Continuity'!B21,'Tab 6 - Financial Model'!$F$14:$F$21) -> 0.92 | E22: =E21*$D22 -> 0 | F22: =F21*$D22 -> 0 | G22: 0 | H22: 0 | I22: 0 | J22: 0 | K22: 0 | L22: 0 | M22: 0 | N22: 0 | O22: 0 | P22: 0 | Q22: 0 | R22: 0 | S22: 0 | T22: 0 | U22: 0 | V22: 0 | W22: 0 | X22: 0 | Y22: 0 | Z22: 0 | AA22: 0 | AB22: 32999268.92 | AC22: 0 | AD22: 0 | AE22: 0 | AF22: 0 | AG22: 0 | AH22: 0 | AI22: 0 | AJ22: 0 | AK22: 0 | AL22: 0 | AM22: 0 | AN22: 0 | AO22: 0 | AP22: 0 | AQ22: 0
B23: Remainder: needed from other sources | E23: =E21-E22 -> 0 | F23: =F21-F22 -> 0 | G23: 0 | H23: 0 | I23: 0 | J23: 0 | K23: 0 | L23: 0 | M23: 0 | N23: 0 | O23: 0 | P23: 0 | Q23: 0 | R23: 0 | S23: 0 | T23: 0 | U23: 0 | V23: 0 | W23: 0 | X23: 0 | Y23: 0 | Z23: 0 | AA23: 0 | AB23: 2869501.645 | AC23: 0 | AD23: 0 | AE23: 0 | AF23: 0 | AG23: 0 | AH23: 0 | AI23: 0 | AJ23: 0 | AK23: 0 | AL23: 0 | AM23: 0 | AN23: 0 | AO23: 0 | AP23: 0 | AQ23: 0
A24: 4 | B24: ='Tab 6 - Financial Model'!B17 -> Providence Emergency Responce Station | D24: ='Tab 6 - Financial Model'!I17 -> 17 | E24: =IF(AND($D24=E$9,$B24='Tab 6 - Financial Model'!$B17),('Tab 6 - Financial Model'!$D17*(1+'Tab 6 - Financial Model'!$E$25)^'Tab 7 - Bylaw Continuity'!E$9),0) -> 0 | F24: =IF(AND($D24=F$9,$B24='Tab 6 - Financial Model'!$B17),('Tab 6 - Financial Model'!$D17*(1+'Tab 6 - Financial Model'!$E$25)^'Tab 7 - Bylaw Continuity'!F$9),0) -> 0 | G24: =IF(AND($D24=G$9,$B24='Tab 6 - Financial Model'!$B17),('Tab 6 - Financial Model'!$D17*(1+'Tab 6 - Financial Model'!$E$25)^'Tab 7 - Bylaw Continuity'!G$9),0) -> 0 | H24: =IF(AND($D24=H$9,$B24='Tab 6 - Financial Model'!$B17),('Tab 6 - Financial Model'!$D17*(1+'Tab 6 - Financial Model'!$E$25)^'Tab 7 - Bylaw Continuity'!H$9),0) -> 0 | I24: =IF(AND($D24=I$9,$B24='Tab 6 - Financial Model'!$B17),('Tab 6 - Financial Model'!$D17*(1+'Tab 6 - Financial Model'!$E$25)^'Tab 7 - Bylaw Continuity'!I$9),0) -> 0 | J24: =IF(AND($D24=J$9,$B24='Tab 6 - Financial Model'!$B17),('Tab 6 - Financial Model'!$D17*(1+'Tab 6 - Financial Model'!$E$25)^'Tab 7 - Bylaw Continuity'!J$9),0) -> 0 | K24: =IF(AND($D24=K$9,$B24='Tab 6 - Financial Model'!$B17),('Tab 6 - Financial Model'!$D17*(1+'Tab 6 - Financial Model'!$E$25)^'Tab 7 - Bylaw Continuity'!K$9),0) -> 0 | L24: =IF(AND($D24=L$9,$B24='Tab 6 - Financial Model'!$B17),('Tab 6 - Financial Model'!$D17*(1+'Tab 6 - Financial Model'!$E$25)^'Tab 7 - Bylaw Continuity'!L$9),0) -> 0 | M24: =IF(AND($D24=M$9,$B24='Tab 6 - Financial Model'!$B17),('Tab 6 - Financial Model'!$D17*(1+'Tab 6 - Financial Model'!$E$25)^'Tab 7 - Bylaw Continuity'!M$9),0) -> 0 | N24: =IF(AND($D24=N$9,$B24='Tab 6 - Financial Model'!$B17),('Tab 6 - Financial Model'!$D17*(1+'Tab 6 - Financial Model'!$E$25)^'Tab 7 - Bylaw Continuity'!N$9),0) -> 0 | O24: =IF(AND($D24=O$9,$B24='Tab 6 - Financial Model'!$B17),('Tab 6 - Financial Model'!$D17*(1+'Tab 6 - Financial Model'!$E$25)^'Tab 7 - Bylaw Continuity'!O$9),0) -> 0 | P24: =IF(AND($D24=P$9,$B24='Tab 6 - Financial Model'!$B17),('Tab 6 - Financial Model'!$D17*(1+'Tab 6 - Financial Model'!$E$25)^'Tab 7 - Bylaw Continuity'!P$9),0) -> 0 | Q24: =IF(AND($D24=Q$9,$B24='Tab 6 - Financial Model'!$B17),('Tab 6 - Financial Model'!$D17*(1+'Tab 6 - Financial Model'!$E$25)^'Tab 7 - Bylaw Continuity'!Q$9),0) -> 0 | R24: =IF(AND($D24=R$9,$B24='Tab 6 - Financial Model'!$B17),('Tab 6 - Financial Model'!$D17*(1+'Tab 6 - Financial Model'!$E$25)^'Tab 7 - Bylaw Continuity'!R$9),0) -> 0 | S24: =IF(AND($D24=S$9,$B24='Tab 6 - Financial Model'!$B17),('Tab 6 - Financial Model'!$D17*(1+'Tab 6 - Financial Model'!$E$25)^'Tab 7 - Bylaw Continuity'!S$9),0) -> 0 | T24: =IF(AND($D24=T$9,$B24='Tab 6 - Financial Model'!$B17),('Tab 6 - Financial Model'!$D17*(1+'Tab 6 - Financial Model'!$E$25)^'Tab 7 - Bylaw Continuity'!T$9),0) -> 0 | U24: =IF(AND($D24=U$9,$B24='Tab 6 - Financial Model'!$B17),('Tab 6 - Financial Model'!$D17*(1+'Tab 6 - Financial Model'!$E$25)^'Tab 7 - Bylaw Continuity'!U$9),0) -> 0 | V24: =IF(AND($D24=V$9,$B24='Tab 6 - Financial Model'!$B17),('Tab 6 - Financial Model'!$D17*(1+'Tab 6 - Financial Model'!$E$25)^'Tab 7 - Bylaw Continuity'!V$9),0) -> 0 | W24: =IF(AND($D24=W$9,$B24='Tab 6 - Financial Model'!$B17),('Tab 6 - Financial Model'!$D17*(1+'Tab 6 - Financial Model'!$E$25)^'Tab 7 - Bylaw Continuity'!W$9),0) -> 0 | X24: =IF(AND($D24=X$9,$B24='Tab 6 - Financial Model'!$B17),('Tab 6 - Financial Model'!$D17*(1+'Tab 6 - Financial Model'!$E$25)^'Tab 7 - Bylaw Continuity'!X$9),0) -> 0 | Y24: =IF(AND($D24=Y$9,$B24='Tab 6 - Financial Model'!$B17),('Tab 6 - Financial Model'!$D17*(1+'Tab 6 - Financial Model'!$E$25)^'Tab 7 - Bylaw Continuity'!Y$9),0) -> 32276673.64 | Z24: =IF(AND($D24=Z$9,$B24='Tab 6 - Financial Model'!$B17),('Tab 6 - Financial Model'!$D17*(1+'Tab 6 - Financial Model'!$E$25)^'Tab 7 - Bylaw Continuity'!Z$9),0) -> 0 | AA24: =IF(AND($D24=AA$9,$B24='Tab 6 - Financial Model'!$B17),('Tab 6 - Financial Model'!$D17*(1+'Tab 6 - Financial Model'!$E$25)^'Tab 7 - Bylaw Continuity'!AA$9),0) -> 0 | AB24: =IF(AND($D24=AB$9,$B24='Tab 6 - Financial Model'!$B17),('Tab 6 - Financial Model'!$D17*(1+'Tab 6 - Financial Model'!$E$25)^'Tab 7 - Bylaw Continuity'!AB$9),0) -> 0 | AC24: =IF(AND($D24=AC$9,$B24='Tab 6 - Financial Model'!$B17),('Tab 6 - Financial Model'!$D17*(1+'Tab 6 - Financial Model'!$E$25)^'Tab 7 - Bylaw Continuity'!AC$9),0) -> 0 | AD24: =IF(AND($D24=AD$9,$B24='Tab 6 - Financial Model'!$B17),('Tab 6 - Financial Model'!$D17*(1+'Tab 6 - Financial Model'!$E$25)^'Tab 7 - Bylaw Continuity'!AD$9),0) -> 0 | AE24: =IF(AND($D24=AE$9,$B24='Tab 6 - Financial Model'!$B17),('Tab 6 - Financial Model'!$D17*(1+'Tab 6 - Financial Model'!$E$25)^'Tab 7 - Bylaw Continuity'!AE$9),0) -> 0 | AF24: =IF(AND($D24=AF$9,$B24='Tab 6 - Financial Model'!$B17),('Tab 6 - Financial Model'!$D17*(1+'Tab 6 - Financial Model'!$E$25)^'Tab 7 - Bylaw Continuity'!AF$9),0) -> 0 | AG24: =IF(AND($D24=AG$9,$B24='Tab 6 - Financial Model'!$B17),('Tab 6 - Financial Model'!$D17*(1+'Tab 6 - Financial Model'!$E$25)^'Tab 7 - Bylaw Continuity'!AG$9),0) -> 0 | AH24: =IF(AND($D24=AH$9,$B24='Tab 6 - Financial Model'!$B17),('Tab 6 - Financial Model'!$D17*(1+'Tab 6 - Financial Model'!$E$25)^'Tab 7 - Bylaw Continuity'!AH$9),0) -> 0 | AI24: =IF(AND($D24=AI$9,$B24='Tab 6 - Financial Model'!$B17),('Tab 6 - Financial Model'!$D17*(1+'Tab 6 - Financial Model'!$E$25)^'Tab 7 - Bylaw Continuity'!AI$9),0) -> 0 | AJ24: =IF(AND($D24=AJ$9,$B24='Tab 6 - Financial Model'!$B17),('Tab 6 - Financial Model'!$D17*(1+'Tab 6 - Financial Model'!$E$25)^'Tab 7 - Bylaw Continuity'!AJ$9),0) -> 0 | AK24: =IF(AND($D24=AK$9,$B24='Tab 6 - Financial Model'!$B17),('Tab 6 - Financial Model'!$D17*(1+'Tab 6 - Financial Model'!$E$25)^'Tab 7 - Bylaw Continuity'!AK$9),0) -> 0 | AL24: =IF(AND($D24=AL$9,$B24='Tab 6 - Financial Model'!$B17),('Tab 6 - Financial Model'!$D17*(1+'Tab 6 - Financial Model'!$E$25)^'Tab 7 - Bylaw Continuity'!AL$9),0) -> 0 | AM24: =IF(AND($D24=AM$9,$B24='Tab 6 - Financial Model'!$B17),('Tab 6 - Financial Model'!$D17*(1+'Tab 6 - Financial Model'!$E$25)^'Tab 7 - Bylaw Continuity'!AM$9),0) -> 0 | AN24: =IF(AND($D24=AN$9,$B24='Tab 6 - Financial Model'!$B17),('Tab 6 - Financial Model'!$D17*(1+'Tab 6 - Financial Model'!$E$25)^'Tab 7 - Bylaw Continuity'!AN$9),0) -> 0 | AO24: =IF(AND($D24=AO$9,$B24='Tab 6 - Financial Model'!$B17),('Tab 6 - Financial Model'!$D17*(1+'Tab 6 - Financial Model'!$E$25)^'Tab 7 - Bylaw Continuity'!AO$9),0) -> 0 | AP24: =IF(AND($D24=AP$9,$B24='Tab 6 - Financial Model'!$B17),('Tab 6 - Financial Model'!$D17*(1+'Tab 6 - Financial Model'!$E$25)^'Tab 7 - Bylaw Continuity'!AP$9),0) -> 0 | AQ24: =IF(AND($D24=AQ$9,$B24='Tab 6 - Financial Model'!$B17),('Tab 6 - Financial Model'!$D17*(1+'Tab 6 - Financial Model'!$E$25)^'Tab 7 - Bylaw Continuity'!AQ$9),0) -> 0
B25: Expenditures from 2024 Bylaw | D25: =SUMIF('Tab 6 - Financial Model'!$B$14:$B$21,'Tab 7 - Bylaw Continuity'!B24,'Tab 6 - Financial Model'!$F$14:$F$21) -> 0.92 | E25: =E24*$D25 -> 0 | F25: =F24*$D25 -> 0 | G25: 0 | H25: 0 | I25: 0 | J25: 0 | K25: 0 | L25: 0 | M25: 0 | N25: 0 | O25: 0 | P25: 0 | Q25: 0 | R25: 0 | S25: 0 | T25: 0 | U25: 0 | V25: 0 | W25: 0 | X25: 0 | Y25: 29694539.75 | Z25: 0 | AA25: 0 | AB25: 0 | AC25: 0 | AD25: 0 | AE25: 0 | AF25: 0 | AG25: 0 | AH25: 0 | AI25: 0 | AJ25: 0 | AK25: 0 | AL25: 0 | AM25: 0 | AN25: 0 | AO25: 0 | AP25: 0 | AQ25: 0
B26: Remainder: needed from other sources | E26: =E24-E25 -> 0 | F26: =F24-F25 -> 0 | G26: 0 | H26: 0 | I26: 0 | J26: 0 | K26: 0 | L26: 0 | M26: 0 | N26: 0 | O26: 0 | P26: 0 | Q26: 0 | R26: 0 | S26: 0 | T26: 0 | U26: 0 | V26: 0 | W26: 0 | X26: 0 | Y26: 2582133.891 | Z26: 0 | AA26: 0 | AB26: 0 | AC26: 0 | AD26: 0 | AE26: 0 | AF26: 0 | AG26: 0 | AH26: 0 | AI26: 0 | AJ26: 0 | AK26: 0 | AL26: 0 | AM26: 0 | AN26: 0 | AO26: 0 | AP26: 0 | AQ26: 0
A27: 5 | B27: ='Tab 6 - Financial Model'!B18 -> Rangeview Emergency Responce Station | D27: ='Tab 6 - Financial Model'!I18 -> 14 | E27: =IF(AND($D27=E$9,$B27='Tab 6 - Financial Model'!$B18),('Tab 6 - Financial Model'!$D18*(1+'Tab 6 - Financial Model'!$E$25)^'Tab 7 - Bylaw Continuity'!E$9),0) -> 0 | F27: =IF(AND($D27=F$9,$B27='Tab 6 - Financial Model'!$B18),('Tab 6 - Financial Model'!$D18*(1+'Tab 6 - Financial Model'!$E$25)^'Tab 7 - Bylaw Continuity'!F$9),0) -> 0 | G27: =IF(AND($D27=G$9,$B27='Tab 6 - Financial Model'!$B18),('Tab 6 - Financial Model'!$D18*(1+'Tab 6 - Financial Model'!$E$25)^'Tab 7 - Bylaw Continuity'!G$9),0) -> 0 | H27: =IF(AND($D27=H$9,$B27='Tab 6 - Financial Model'!$B18),('Tab 6 - Financial Model'!$D18*(1+'Tab 6 - Financial Model'!$E$25)^'Tab 7 - Bylaw Continuity'!H$9),0) -> 0 | I27: =IF(AND($D27=I$9,$B27='Tab 6 - Financial Model'!$B18),('Tab 6 - Financial Model'!$D18*(1+'Tab 6 - Financial Model'!$E$25)^'Tab 7 - Bylaw Continuity'!I$9),0) -> 0 | J27: =IF(AND($D27=J$9,$B27='Tab 6 - Financial Model'!$B18),('Tab 6 - Financial Model'!$D18*(1+'Tab 6 - Financial Model'!$E$25)^'Tab 7 - Bylaw Continuity'!J$9),0) -> 0 | K27: =IF(AND($D27=K$9,$B27='Tab 6 - Financial Model'!$B18),('Tab 6 - Financial Model'!$D18*(1+'Tab 6 - Financial Model'!$E$25)^'Tab 7 - Bylaw Continuity'!K$9),0) -> 0 | L27: =IF(AND($D27=L$9,$B27='Tab 6 - Financial Model'!$B18),('Tab 6 - Financial Model'!$D18*(1+'Tab 6 - Financial Model'!$E$25)^'Tab 7 - Bylaw Continuity'!L$9),0) -> 0 | M27: =IF(AND($D27=M$9,$B27='Tab 6 - Financial Model'!$B18),('Tab 6 - Financial Model'!$D18*(1+'Tab 6 - Financial Model'!$E$25)^'Tab 7 - Bylaw Continuity'!M$9),0) -> 0 | N27: =IF(AND($D27=N$9,$B27='Tab 6 - Financial Model'!$B18),('Tab 6 - Financial Model'!$D18*(1+'Tab 6 - Financial Model'!$E$25)^'Tab 7 - Bylaw Continuity'!N$9),0) -> 0 | O27: =IF(AND($D27=O$9,$B27='Tab 6 - Financial Model'!$B18),('Tab 6 - Financial Model'!$D18*(1+'Tab 6 - Financial Model'!$E$25)^'Tab 7 - Bylaw Continuity'!O$9),0) -> 0 | P27: =IF(AND($D27=P$9,$B27='Tab 6 - Financial Model'!$B18),('Tab 6 - Financial Model'!$D18*(1+'Tab 6 - Financial Model'!$E$25)^'Tab 7 - Bylaw Continuity'!P$9),0) -> 0 | Q27: =IF(AND($D27=Q$9,$B27='Tab 6 - Financial Model'!$B18),('Tab 6 - Financial Model'!$D18*(1+'Tab 6 - Financial Model'!$E$25)^'Tab 7 - Bylaw Continuity'!Q$9),0) -> 0 | R27: =IF(AND($D27=R$9,$B27='Tab 6 - Financial Model'!$B18),('Tab 6 - Financial Model'!$D18*(1+'Tab 6 - Financial Model'!$E$25)^'Tab 7 - Bylaw Continuity'!R$9),0) -> 0 | S27: =IF(AND($D27=S$9,$B27='Tab 6 - Financial Model'!$B18),('Tab 6 - Financial Model'!$D18*(1+'Tab 6 - Financial Model'!$E$25)^'Tab 7 - Bylaw Continuity'!S$9),0) -> 0 | T27: =IF(AND($D27=T$9,$B27='Tab 6 - Financial Model'!$B18),('Tab 6 - Financial Model'!$D18*(1+'Tab 6 - Financial Model'!$E$25)^'Tab 7 - Bylaw Continuity'!T$9),0) -> 0 | U27: =IF(AND($D27=U$9,$B27='Tab 6 - Financial Model'!$B18),('Tab 6 - Financial Model'!$D18*(1+'Tab 6 - Financial Model'!$E$25)^'Tab 7 - Bylaw Continuity'!U$9),0) -> 0 | V27: =IF(AND($D27=V$9,$B27='Tab 6 - Financial Model'!$B18),('Tab 6 - Financial Model'!$D18*(1+'Tab 6 - Financial Model'!$E$25)^'Tab 7 - Bylaw Continuity'!V$9),0) -> 36162210.28 | W27: =IF(AND($D27=W$9,$B27='Tab 6 - Financial Model'!$B18),('Tab 6 - Financial Model'!$D18*(1+'Tab 6 - Financial Model'!$E$25)^'Tab 7 - Bylaw Continuity'!W$9),0) -> 0 | X27: =IF(AND($D27=X$9,$B27='Tab 6 - Financial Model'!$B18),('Tab 6 - Financial Model'!$D18*(1+'Tab 6 - Financial Model'!$E$25)^'Tab 7 - Bylaw Continuity'!X$9),0) -> 0 | Y27: =IF(AND($D27=Y$9,$B27='Tab 6 - Financial Model'!$B18),('Tab 6 - Financial Model'!$D18*(1+'Tab 6 - Financial Model'!$E$25)^'Tab 7 - Bylaw Continuity'!Y$9),0) -> 0 | Z27: =IF(AND($D27=Z$9,$B27='Tab 6 - Financial Model'!$B18),('Tab 6 - Financial Model'!$D18*(1+'Tab 6 - Financial Model'!$E$25)^'Tab 7 - Bylaw Continuity'!Z$9),0) -> 0 | AA27: =IF(AND($D27=AA$9,$B27='Tab 6 - Financial Model'!$B18),('Tab 6 - Financial Model'!$D18*(1+'Tab 6 - Financial Model'!$E$25)^'Tab 7 - Bylaw Continuity'!AA$9),0) -> 0 | AB27: =IF(AND($D27=AB$9,$B27='Tab 6 - Financial Model'!$B18),('Tab 6 - Financial Model'!$D18*(1+'Tab 6 - Financial Model'!$E$25)^'Tab 7 - Bylaw Continuity'!AB$9),0) -> 0 | AC27: =IF(AND($D27=AC$9,$B27='Tab 6 - Financial Model'!$B18),('Tab 6 - Financial Model'!$D18*(1+'Tab 6 - Financial Model'!$E$25)^'Tab 7 - Bylaw Continuity'!AC$9),0) -> 0 | AD27: =IF(AND($D27=AD$9,$B27='Tab 6 - Financial Model'!$B18),('Tab 6 - Financial Model'!$D18*(1+'Tab 6 - Financial Model'!$E$25)^'Tab 7 - Bylaw Continuity'!AD$9),0) -> 0 | AE27: =IF(AND($D27=AE$9,$B27='Tab 6 - Financial Model'!$B18),('Tab 6 - Financial Model'!$D18*(1+'Tab 6 - Financial Model'!$E$25)^'Tab 7 - Bylaw Continuity'!AE$9),0) -> 0 | AF27: =IF(AND($D27=AF$9,$B27='Tab 6 - Financial Model'!$B18),('Tab 6 - Financial Model'!$D18*(1+'Tab 6 - Financial Model'!$E$25)^'Tab 7 - Bylaw Continuity'!AF$9),0) -> 0 | AG27: =IF(AND($D27=AG$9,$B27='Tab 6 - Financial Model'!$B18),('Tab 6 - Financial Model'!$D18*(1+'Tab 6 - Financial Model'!$E$25)^'Tab 7 - Bylaw Continuity'!AG$9),0) -> 0 | AH27: =IF(AND($D27=AH$9,$B27='Tab 6 - Financial Model'!$B18),('Tab 6 - Financial Model'!$D18*(1+'Tab 6 - Financial Model'!$E$25)^'Tab 7 - Bylaw Continuity'!AH$9),0) -> 0 | AI27: =IF(AND($D27=AI$9,$B27='Tab 6 - Financial Model'!$B18),('Tab 6 - Financial Model'!$D18*(1+'Tab 6 - Financial Model'!$E$25)^'Tab 7 - Bylaw Continuity'!AI$9),0) -> 0 | AJ27: =IF(AND($D27=AJ$9,$B27='Tab 6 - Financial Model'!$B18),('Tab 6 - Financial Model'!$D18*(1+'Tab 6 - Financial Model'!$E$25)^'Tab 7 - Bylaw Continuity'!AJ$9),0) -> 0 | AK27: =IF(AND($D27=AK$9,$B27='Tab 6 - Financial Model'!$B18),('Tab 6 - Financial Model'!$D18*(1+'Tab 6 - Financial Model'!$E$25)^'Tab 7 - Bylaw Continuity'!AK$9),0) -> 0 | AL27: =IF(AND($D27=AL$9,$B27='Tab 6 - Financial Model'!$B18),('Tab 6 - Financial Model'!$D18*(1+'Tab 6 - Financial Model'!$E$25)^'Tab 7 - Bylaw Continuity'!AL$9),0) -> 0 | AM27: =IF(AND($D27=AM$9,$B27='Tab 6 - Financial Model'!$B18),('Tab 6 - Financial Model'!$D18*(1+'Tab 6 - Financial Model'!$E$25)^'Tab 7 - Bylaw Continuity'!AM$9),0) -> 0 | AN27: =IF(AND($D27=AN$9,$B27='Tab 6 - Financial Model'!$B18),('Tab 6 - Financial Model'!$D18*(1+'Tab 6 - Financial Model'!$E$25)^'Tab 7 - Bylaw Continuity'!AN$9),0) -> 0 | AO27: =IF(AND($D27=AO$9,$B27='Tab 6 - Financial Model'!$B18),('Tab 6 - Financial Model'!$D18*(1+'Tab 6 - Financial Model'!$E$25)^'Tab 7 - Bylaw Continuity'!AO$9),0) -> 0 | AP27: =IF(AND($D27=AP$9,$B27='Tab 6 - Financial Model'!$B18),('Tab 6 - Financial Model'!$D18*(1+'Tab 6 - Financial Model'!$E$25)^'Tab 7 - Bylaw Continuity'!AP$9),0) -> 0 | AQ27: =IF(AND($D27=AQ$9,$B27='Tab 6 - Financial Model'!$B18),('Tab 6 - Financial Model'!$D18*(1+'Tab 6 - Financial Model'!$E$25)^'Tab 7 - Bylaw Continuity'!AQ$9),0) -> 0
B28: Expenditures from 2024 Bylaw | D28: =SUMIF('Tab 6 - Financial Model'!$B$14:$B$21,'Tab 7 - Bylaw Continuity'!B27,'Tab 6 - Financial Model'!$F$14:$F$21) -> 0.92 | E28: =E27*$D28 -> 0 | F28: =F27*$D28 -> 0 | G28: 0 | H28: 0 | I28: 0 | J28: 0 | K28: 0 | L28: 0 | M28: 0 | N28: 0 | O28: 0 | P28: 0 | Q28: 0 | R28: 0 | S28: 0 | T28: 0 | U28: 0 | V28: 33269233.46 | W28: 0 | X28: 0 | Y28: 0 | Z28: 0 | AA28: 0 | AB28: 0 | AC28: 0 | AD28: 0 | AE28: 0 | AF28: 0 | AG28: 0 | AH28: 0 | AI28: 0 | AJ28: 0 | AK28: 0 | AL28: 0 | AM28: 0 | AN28: 0 | AO28: 0 | AP28: 0 | AQ28: 0
B29: Remainder: needed from other sources | E29: =E27-E28 -> 0 | F29: =F27-F28 -> 0 | G29: 0 | H29: 0 | I29: 0 | J29: 0 | K29: 0 | L29: 0 | M29: 0 | N29: 0 | O29: 0 | P29: 0 | Q29: 0 | R29: 0 | S29: 0 | T29: 0 | U29: 0 | V29: 2892976.822 | W29: 0 | X29: 0 | Y29: 0 | Z29: 0 | AA29: 0 | AB29: 0 | AC29: 0 | AD29: 0 | AE29: 0 | AF29: 0 | AG29: 0 | AH29: 0 | AI29: 0 | AJ29: 0 | AK29: 0 | AL29: 0 | AM29: 0 | AN29: 0 | AO29: 0 | AP29: 0 | AQ29: 0
A30: 6 | B30: ='Tab 6 - Financial Model'!B19 -> South Shepard Emergency Responce Station | D30: ='Tab 6 - Financial Model'!I19 -> 10 | E30: =IF(AND($D30=E$9,$B30='Tab 6 - Financial Model'!$B19),('Tab 6 - Financial Model'!$D19*(1+'Tab 6 - Financial Model'!$E$25)^'Tab 7 - Bylaw Continuity'!E$9),0) -> 0 | F30: =IF(AND($D30=F$9,$B30='Tab 6 - Financial Model'!$B19),('Tab 6 - Financial Model'!$D19*(1+'Tab 6 - Financial Model'!$E$25)^'Tab 7 - Bylaw Continuity'!F$9),0) -> 0 | G30: =IF(AND($D30=G$9,$B30='Tab 6 - Financial Model'!$B19),('Tab 6 - Financial Model'!$D19*(1+'Tab 6 - Financial Model'!$E$25)^'Tab 7 - Bylaw Continuity'!G$9),0) -> 0 | H30: =IF(AND($D30=H$9,$B30='Tab 6 - Financial Model'!$B19),('Tab 6 - Financial Model'!$D19*(1+'Tab 6 - Financial Model'!$E$25)^'Tab 7 - Bylaw Continuity'!H$9),0) -> 0 | I30: =IF(AND($D30=I$9,$B30='Tab 6 - Financial Model'!$B19),('Tab 6 - Financial Model'!$D19*(1+'Tab 6 - Financial Model'!$E$25)^'Tab 7 - Bylaw Continuity'!I$9),0) -> 0 | J30: =IF(AND($D30=J$9,$B30='Tab 6 - Financial Model'!$B19),('Tab 6 - Financial Model'!$D19*(1+'Tab 6 - Financial Model'!$E$25)^'Tab 7 - Bylaw Continuity'!J$9),0) -> 0 | K30: =IF(AND($D30=K$9,$B30='Tab 6 - Financial Model'!$B19),('Tab 6 - Financial Model'!$D19*(1+'Tab 6 - Financial Model'!$E$25)^'Tab 7 - Bylaw Continuity'!K$9),0) -> 0 | L30: =IF(AND($D30=L$9,$B30='Tab 6 - Financial Model'!$B19),('Tab 6 - Financial Model'!$D19*(1+'Tab 6 - Financial Model'!$E$25)^'Tab 7 - Bylaw Continuity'!L$9),0) -> 0 | M30: =IF(AND($D30=M$9,$B30='Tab 6 - Financial Model'!$B19),('Tab 6 - Financial Model'!$D19*(1+'Tab 6 - Financial Model'!$E$25)^'Tab 7 - Bylaw Continuity'!M$9),0) -> 0 | N30: =IF(AND($D30=N$9,$B30='Tab 6 - Financial Model'!$B19),('Tab 6 - Financial Model'!$D19*(1+'Tab 6 - Financial Model'!$E$25)^'Tab 7 - Bylaw Continuity'!N$9),0) -> 0 | O30: =IF(AND($D30=O$9,$B30='Tab 6 - Financial Model'!$B19),('Tab 6 - Financial Model'!$D19*(1+'Tab 6 - Financial Model'!$E$25)^'Tab 7 - Bylaw Continuity'!O$9),0) -> 0 | P30: =IF(AND($D30=P$9,$B30='Tab 6 - Financial Model'!$B19),('Tab 6 - Financial Model'!$D19*(1+'Tab 6 - Financial Model'!$E$25)^'Tab 7 - Bylaw Continuity'!P$9),0) -> 0 | Q30: =IF(AND($D30=Q$9,$B30='Tab 6 - Financial Model'!$B19),('Tab 6 - Financial Model'!$D19*(1+'Tab 6 - Financial Model'!$E$25)^'Tab 7 - Bylaw Continuity'!Q$9),0) -> 0 | R30: =IF(AND($D30=R$9,$B30='Tab 6 - Financial Model'!$B19),('Tab 6 - Financial Model'!$D19*(1+'Tab 6 - Financial Model'!$E$25)^'Tab 7 - Bylaw Continuity'!R$9),0) -> 25232333.97 | S30: =IF(AND($D30=S$9,$B30='Tab 6 - Financial Model'!$B19),('Tab 6 - Financial Model'!$D19*(1+'Tab 6 - Financial Model'!$E$25)^'Tab 7 - Bylaw Continuity'!S$9),0) -> 0 | T30: =IF(AND($D30=T$9,$B30='Tab 6 - Financial Model'!$B19),('Tab 6 - Financial Model'!$D19*(1+'Tab 6 - Financial Model'!$E$25)^'Tab 7 - Bylaw Continuity'!T$9),0) -> 0 | U30: =IF(AND($D30=U$9,$B30='Tab 6 - Financial Model'!$B19),('Tab 6 - Financial Model'!$D19*(1+'Tab 6 - Financial Model'!$E$25)^'Tab 7 - Bylaw Continuity'!U$9),0) -> 0 | V30: =IF(AND($D30=V$9,$B30='Tab 6 - Financial Model'!$B19),('Tab 6 - Financial Model'!$D19*(1+'Tab 6 - Financial Model'!$E$25)^'Tab 7 - Bylaw Continuity'!V$9),0) -> 0 | W30: =IF(AND($D30=W$9,$B30='Tab 6 - Financial Model'!$B19),('Tab 6 - Financial Model'!$D19*(1+'Tab 6 - Financial Model'!$E$25)^'Tab 7 - Bylaw Continuity'!W$9),0) -> 0 | X30: =IF(AND($D30=X$9,$B30='Tab 6 - Financial Model'!$B19),('Tab 6 - Financial Model'!$D19*(1+'Tab 6 - Financial Model'!$E$25)^'Tab 7 - Bylaw Continuity'!X$9),0) -> 0 | Y30: =IF(AND($D30=Y$9,$B30='Tab 6 - Financial Model'!$B19),('Tab 6 - Financial Model'!$D19*(1+'Tab 6 - Financial Model'!$E$25)^'Tab 7 - Bylaw Continuity'!Y$9),0) -> 0 | Z30: =IF(AND($D30=Z$9,$B30='Tab 6 - Financial Model'!$B19),('Tab 6 - Financial Model'!$D19*(1+'Tab 6 - Financial Model'!$E$25)^'Tab 7 - Bylaw Continuity'!Z$9),0) -> 0 | AA30: =IF(AND($D30=AA$9,$B30='Tab 6 - Financial Model'!$B19),('Tab 6 - Financial Model'!$D19*(1+'Tab 6 - Financial Model'!$E$25)^'Tab 7 - Bylaw Continuity'!AA$9),0) -> 0 | AB30: =IF(AND($D30=AB$9,$B30='Tab 6 - Financial Model'!$B19),('Tab 6 - Financial Model'!$D19*(1+'Tab 6 - Financial Model'!$E$25)^'Tab 7 - Bylaw Continuity'!AB$9),0) -> 0 | AC30: =IF(AND($D30=AC$9,$B30='Tab 6 - Financial Model'!$B19),('Tab 6 - Financial Model'!$D19*(1+'Tab 6 - Financial Model'!$E$25)^'Tab 7 - Bylaw Continuity'!AC$9),0) -> 0 | AD30: =IF(AND($D30=AD$9,$B30='Tab 6 - Financial Model'!$B19),('Tab 6 - Financial Model'!$D19*(1+'Tab 6 - Financial Model'!$E$25)^'Tab 7 - Bylaw Continuity'!AD$9),0) -> 0 | AE30: =IF(AND($D30=AE$9,$B30='Tab 6 - Financial Model'!$B19),('Tab 6 - Financial Model'!$D19*(1+'Tab 6 - Financial Model'!$E$25)^'Tab 7 - Bylaw Continuity'!AE$9),0) -> 0 | AF30: =IF(AND($D30=AF$9,$B30='Tab 6 - Financial Model'!$B19),('Tab 6 - Financial Model'!$D19*(1+'Tab 6 - Financial Model'!$E$25)^'Tab 7 - Bylaw Continuity'!AF$9),0) -> 0 | AG30: =IF(AND($D30=AG$9,$B30='Tab 6 - Financial Model'!$B19),('Tab 6 - Financial Model'!$D19*(1+'Tab 6 - Financial Model'!$E$25)^'Tab 7 - Bylaw Continuity'!AG$9),0) -> 0 | AH30: =IF(AND($D30=AH$9,$B30='Tab 6 - Financial Model'!$B19),('Tab 6 - Financial Model'!$D19*(1+'Tab 6 - Financial Model'!$E$25)^'Tab 7 - Bylaw Continuity'!AH$9),0) -> 0 | AI30: =IF(AND($D30=AI$9,$B30='Tab 6 - Financial Model'!$B19),('Tab 6 - Financial Model'!$D19*(1+'Tab 6 - Financial Model'!$E$25)^'Tab 7 - Bylaw Continuity'!AI$9),0) -> 0 | AJ30: =IF(AND($D30=AJ$9,$B30='Tab 6 - Financial Model'!$B19),('Tab 6 - Financial Model'!$D19*(1+'Tab 6 - Financial Model'!$E$25)^'Tab 7 - Bylaw Continuity'!AJ$9),0) -> 0 | AK30: =IF(AND($D30=AK$9,$B30='Tab 6 - Financial Model'!$B19),('Tab 6 - Financial Model'!$D19*(1+'Tab 6 - Financial Model'!$E$25)^'Tab 7 - Bylaw Continuity'!AK$9),0) -> 0 | AL30: =IF(AND($D30=AL$9,$B30='Tab 6 - Financial Model'!$B19),('Tab 6 - Financial Model'!$D19*(1+'Tab 6 - Financial Model'!$E$25)^'Tab 7 - Bylaw Continuity'!AL$9),0) -> 0 | AM30: =IF(AND($D30=AM$9,$B30='Tab 6 - Financial Model'!$B19),('Tab 6 - Financial Model'!$D19*(1+'Tab 6 - Financial Model'!$E$25)^'Tab 7 - Bylaw Continuity'!AM$9),0) -> 0 | AN30: =IF(AND($D30=AN$9,$B30='Tab 6 - Financial Model'!$B19),('Tab 6 - Financial Model'!$D19*(1+'Tab 6 - Financial Model'!$E$25)^'Tab 7 - Bylaw Continuity'!AN$9),0) -> 0 | AO30: =IF(AND($D30=AO$9,$B30='Tab 6 - Financial Model'!$B19),('Tab 6 - Financial Model'!$D19*(1+'Tab 6 - Financial Model'!$E$25)^'Tab 7 - Bylaw Continuity'!AO$9),0) -> 0 | AP30: =IF(AND($D30=AP$9,$B30='Tab 6 - Financial Model'!$B19),('Tab 6 - Financial Model'!$D19*(1+'Tab 6 - Financial Model'!$E$25)^'Tab 7 - Bylaw Continuity'!AP$9),0) -> 0 | AQ30: =IF(AND($D30=AQ$9,$B30='Tab 6 - Financial Model'!$B19),('Tab 6 - Financial Model'!$D19*(1+'Tab 6 - Financial Model'!$E$25)^'Tab 7 - Bylaw Continuity'!AQ$9),0) -> 0
B31: Expenditures from 2024 Bylaw | D31: =SUMIF('Tab 6 - Financial Model'!$B$14:$B$21,'Tab 7 - Bylaw Continuity'!B30,'Tab 6 - Financial Model'!$F$14:$F$21) -> 0.92 | E31: =E30*$D31 -> 0 | F31: =F30*$D31 -> 0 | G31: 0 | H31: 0 | I31: 0 | J31: 0 | K31: 0 | L31: 0 | M31: 0 | N31: 0 | O31: 0 | P31: 0 | Q31: 0 | R31: 23213747.25 | S31: 0 | T31: 0 | U31: 0 | V31: 0 | W31: 0 | X31: 0 | Y31: 0 | Z31: 0 | AA31: 0 | AB31: 0 | AC31: 0 | AD31: 0 | AE31: 0 | AF31: 0 | AG31: 0 | AH31: 0 | AI31: 0 | AJ31: 0 | AK31: 0 | AL31: 0 | AM31: 0 | AN31: 0 | AO31: 0 | AP31: 0 | AQ31: 0
B32: Remainder: needed from other sources | E32: =E30-E31 -> 0 | F32: =F30-F31 -> 0 | G32: 0 | H32: 0 | I32: 0 | J32: 0 | K32: 0 | L32: 0 | M32: 0 | N32: 0 | O32: 0 | P32: 0 | Q32: 0 | R32: 2018586.717 | S32: 0 | T32: 0 | U32: 0 | V32: 0 | W32: 0 | X32: 0 | Y32: 0 | Z32: 0 | AA32: 0 | AB32: 0 | AC32: 0 | AD32: 0 | AE32: 0 | AF32: 0 | AG32: 0 | AH32: 0 | AI32: 0 | AJ32: 0 | AK32: 0 | AL32: 0 | AM32: 0 | AN32: 0 | AO32: 0 | AP32: 0 | AQ32: 0
A33: 7 | B33: ='Tab 6 - Financial Model'!B20 -> West View Emergency Responce Station | D33: ='Tab 6 - Financial Model'!I20 -> 25 | E33: =IF(AND($D33=E$9,$B33='Tab 6 - Financial Model'!$B20),('Tab 6 - Financial Model'!$D20*(1+'Tab 6 - Financial Model'!$E$25)^'Tab 7 - Bylaw Continuity'!E$9),0) -> 0 | F33: =IF(AND($D33=F$9,$B33='Tab 6 - Financial Model'!$B20),('Tab 6 - Financial Model'!$D20*(1+'Tab 6 - Financial Model'!$E$25)^'Tab 7 - Bylaw Continuity'!F$9),0) -> 0 | G33: =IF(AND($D33=G$9,$B33='Tab 6 - Financial Model'!$B20),('Tab 6 - Financial Model'!$D20*(1+'Tab 6 - Financial Model'!$E$25)^'Tab 7 - Bylaw Continuity'!G$9),0) -> 0 | H33: =IF(AND($D33=H$9,$B33='Tab 6 - Financial Model'!$B20),('Tab 6 - Financial Model'!$D20*(1+'Tab 6 - Financial Model'!$E$25)^'Tab 7 - Bylaw Continuity'!H$9),0) -> 0 | I33: =IF(AND($D33=I$9,$B33='Tab 6 - Financial Model'!$B20),('Tab 6 - Financial Model'!$D20*(1+'Tab 6 - Financial Model'!$E$25)^'Tab 7 - Bylaw Continuity'!I$9),0) -> 0 | J33: =IF(AND($D33=J$9,$B33='Tab 6 - Financial Model'!$B20),('Tab 6 - Financial Model'!$D20*(1+'Tab 6 - Financial Model'!$E$25)^'Tab 7 - Bylaw Continuity'!J$9),0) -> 0 | K33: =IF(AND($D33=K$9,$B33='Tab 6 - Financial Model'!$B20),('Tab 6 - Financial Model'!$D20*(1+'Tab 6 - Financial Model'!$E$25)^'Tab 7 - Bylaw Continuity'!K$9),0) -> 0 | L33: =IF(AND($D33=L$9,$B33='Tab 6 - Financial Model'!$B20),('Tab 6 - Financial Model'!$D20*(1+'Tab 6 - Financial Model'!$E$25)^'Tab 7 - Bylaw Continuity'!L$9),0) -> 0 | M33: =IF(AND($D33=M$9,$B33='Tab 6 - Financial Model'!$B20),('Tab 6 - Financial Model'!$D20*(1+'Tab 6 - Financial Model'!$E$25)^'Tab 7 - Bylaw Continuity'!M$9),0) -> 0 | N33: =IF(AND($D33=N$9,$B33='Tab 6 - Financial Model'!$B20),('Tab 6 - Financial Model'!$D20*(1+'Tab 6 - Financial Model'!$E$25)^'Tab 7 - Bylaw Continuity'!N$9),0) -> 0 | O33: =IF(AND($D33=O$9,$B33='Tab 6 - Financial Model'!$B20),('Tab 6 - Financial Model'!$D20*(1+'Tab 6 - Financial Model'!$E$25)^'Tab 7 - Bylaw Continuity'!O$9),0) -> 0 | P33: =IF(AND($D33=P$9,$B33='Tab 6 - Financial Model'!$B20),('Tab 6 - Financial Model'!$D20*(1+'Tab 6 - Financial Model'!$E$25)^'Tab 7 - Bylaw Continuity'!P$9),0) -> 0 | Q33: =IF(AND($D33=Q$9,$B33='Tab 6 - Financial Model'!$B20),('Tab 6 - Financial Model'!$D20*(1+'Tab 6 - Financial Model'!$E$25)^'Tab 7 - Bylaw Continuity'!Q$9),0) -> 0 | R33: =IF(AND($D33=R$9,$B33='Tab 6 - Financial Model'!$B20),('Tab 6 - Financial Model'!$D20*(1+'Tab 6 - Financial Model'!$E$25)^'Tab 7 - Bylaw Continuity'!R$9),0) -> 0 | S33: =IF(AND($D33=S$9,$B33='Tab 6 - Financial Model'!$B20),('Tab 6 - Financial Model'!$D20*(1+'Tab 6 - Financial Model'!$E$25)^'Tab 7 - Bylaw Continuity'!S$9),0) -> 0 | T33: =IF(AND($D33=T$9,$B33='Tab 6 - Financial Model'!$B20),('Tab 6 - Financial Model'!$D20*(1+'Tab 6 - Financial Model'!$E$25)^'Tab 7 - Bylaw Continuity'!T$9),0) -> 0 | U33: =IF(AND($D33=U$9,$B33='Tab 6 - Financial Model'!$B20),('Tab 6 - Financial Model'!$D20*(1+'Tab 6 - Financial Model'!$E$25)^'Tab 7 - Bylaw Continuity'!U$9),0) -> 0 | V33: =IF(AND($D33=V$9,$B33='Tab 6 - Financial Model'!$B20),('Tab 6 - Financial Model'!$D20*(1+'Tab 6 - Financial Model'!$E$25)^'Tab 7 - Bylaw Continuity'!V$9),0) -> 0 | W33: =IF(AND($D33=W$9,$B33='Tab 6 - Financial Model'!$B20),('Tab 6 - Financial Model'!$D20*(1+'Tab 6 - Financial Model'!$E$25)^'Tab 7 - Bylaw Continuity'!W$9),0) -> 0 | X33: =IF(AND($D33=X$9,$B33='Tab 6 - Financial Model'!$B20),('Tab 6 - Financial Model'!$D20*(1+'Tab 6 - Financial Model'!$E$25)^'Tab 7 - Bylaw Continuity'!X$9),0) -> 0 | Y33: =IF(AND($D33=Y$9,$B33='Tab 6 - Financial Model'!$B20),('Tab 6 - Financial Model'!$D20*(1+'Tab 6 - Financial Model'!$E$25)^'Tab 7 - Bylaw Continuity'!Y$9),0) -> 0 | Z33: =IF(AND($D33=Z$9,$B33='Tab 6 - Financial Model'!$B20),('Tab 6 - Financial Model'!$D20*(1+'Tab 6 - Financial Model'!$E$25)^'Tab 7 - Bylaw Continuity'!Z$9),0) -> 0 | AA33: =IF(AND($D33=AA$9,$B33='Tab 6 - Financial Model'!$B20),('Tab 6 - Financial Model'!$D20*(1+'Tab 6 - Financial Model'!$E$25)^'Tab 7 - Bylaw Continuity'!AA$9),0) -> 0 | AB33: =IF(AND($D33=AB$9,$B33='Tab 6 - Financial Model'!$B20),('Tab 6 - Financial Model'!$D20*(1+'Tab 6 - Financial Model'!$E$25)^'Tab 7 - Bylaw Continuity'!AB$9),0) -> 0 | AC33: =IF(AND($D33=AC$9,$B33='Tab 6 - Financial Model'!$B20),('Tab 6 - Financial Model'!$D20*(1+'Tab 6 - Financial Model'!$E$25)^'Tab 7 - Bylaw Continuity'!AC$9),0) -> 0 | AD33: =IF(AND($D33=AD$9,$B33='Tab 6 - Financial Model'!$B20),('Tab 6 - Financial Model'!$D20*(1+'Tab 6 - Financial Model'!$E$25)^'Tab 7 - Bylaw Continuity'!AD$9),0) -> 0 | AE33: =IF(AND($D33=AE$9,$B33='Tab 6 - Financial Model'!$B20),('Tab 6 - Financial Model'!$D20*(1+'Tab 6 - Financial Model'!$E$25)^'Tab 7 - Bylaw Continuity'!AE$9),0) -> 0 | AF33: =IF(AND($D33=AF$9,$B33='Tab 6 - Financial Model'!$B20),('Tab 6 - Financial Model'!$D20*(1+'Tab 6 - Financial Model'!$E$25)^'Tab 7 - Bylaw Continuity'!AF$9),0) -> 0 | AG33: =IF(AND($D33=AG$9,$B33='Tab 6 - Financial Model'!$B20),('Tab 6 - Financial Model'!$D20*(1+'Tab 6 - Financial Model'!$E$25)^'Tab 7 - Bylaw Continuity'!AG$9),0) -> 42765743.27 | AH33: =IF(AND($D33=AH$9,$B33='Tab 6 - Financial Model'!$B20),('Tab 6 - Financial Model'!$D20*(1+'Tab 6 - Financial Model'!$E$25)^'Tab 7 - Bylaw Continuity'!AH$9),0) -> 0 | AI33: =IF(AND($D33=AI$9,$B33='Tab 6 - Financial Model'!$B20),('Tab 6 - Financial Model'!$D20*(1+'Tab 6 - Financial Model'!$E$25)^'Tab 7 - Bylaw Continuity'!AI$9),0) -> 0 | AJ33: =IF(AND($D33=AJ$9,$B33='Tab 6 - Financial Model'!$B20),('Tab 6 - Financial Model'!$D20*(1+'Tab 6 - Financial Model'!$E$25)^'Tab 7 - Bylaw Continuity'!AJ$9),0) -> 0 | AK33: =IF(AND($D33=AK$9,$B33='Tab 6 - Financial Model'!$B20),('Tab 6 - Financial Model'!$D20*(1+'Tab 6 - Financial Model'!$E$25)^'Tab 7 - Bylaw Continuity'!AK$9),0) -> 0 | AL33: =IF(AND($D33=AL$9,$B33='Tab 6 - Financial Model'!$B20),('Tab 6 - Financial Model'!$D20*(1+'Tab 6 - Financial Model'!$E$25)^'Tab 7 - Bylaw Continuity'!AL$9),0) -> 0 | AM33: =IF(AND($D33=AM$9,$B33='Tab 6 - Financial Model'!$B20),('Tab 6 - Financial Model'!$D20*(1+'Tab 6 - Financial Model'!$E$25)^'Tab 7 - Bylaw Continuity'!AM$9),0) -> 0 | AN33: =IF(AND($D33=AN$9,$B33='Tab 6 - Financial Model'!$B20),('Tab 6 - Financial Model'!$D20*(1+'Tab 6 - Financial Model'!$E$25)^'Tab 7 - Bylaw Continuity'!AN$9),0) -> 0 | AO33: =IF(AND($D33=AO$9,$B33='Tab 6 - Financial Model'!$B20),('Tab 6 - Financial Model'!$D20*(1+'Tab 6 - Financial Model'!$E$25)^'Tab 7 - Bylaw Continuity'!AO$9),0) -> 0 | AP33: =IF(AND($D33=AP$9,$B33='Tab 6 - Financial Model'!$B20),('Tab 6 - Financial Model'!$D20*(1+'Tab 6 - Financial Model'!$E$25)^'Tab 7 - Bylaw Continuity'!AP$9),0) -> 0 | AQ33: =IF(AND($D33=AQ$9,$B33='Tab 6 - Financial Model'!$B20),('Tab 6 - Financial Model'!$D20*(1+'Tab 6 - Financial Model'!$E$25)^'Tab 7 - Bylaw Continuity'!AQ$9),0) -> 0
B34: Expenditures from 2024 Bylaw | D34: =SUMIF('Tab 6 - Financial Model'!$B$14:$B$21,'Tab 7 - Bylaw Continuity'!B33,'Tab 6 - Financial Model'!$F$14:$F$21) -> 0.92 | E34: =E33*$D34 -> 0 | F34: =F33*$D34 -> 0 | G34: 0 | H34: 0 | I34: 0 | J34: 0 | K34: 0 | L34: 0 | M34: 0 | N34: 0 | O34: 0 | P34: 0 | Q34: 0 | R34: 0 | S34: 0 | T34: 0 | U34: 0 | V34: 0 | W34: 0 | X34: 0 | Y34: 0 | Z34: 0 | AA34: 0 | AB34: 0 | AC34: 0 | AD34: 0 | AE34: 0 | AF34: 0 | AG34: 39344483.8 | AH34: 0 | AI34: 0 | AJ34: 0 | AK34: 0 | AL34: 0 | AM34: 0 | AN34: 0 | AO34: 0 | AP34: 0 | AQ34: 0
B35: Remainder: needed from other sources | E35: =E33-E34 -> 0 | F35: =F33-F34 -> 0 | G35: 0 | H35: 0 | I35: 0 | J35: 0 | K35: 0 | L35: 0 | M35: 0 | N35: 0 | O35: 0 | P35: 0 | Q35: 0 | R35: 0 | S35: 0 | T35: 0 | U35: 0 | V35: 0 | W35: 0 | X35: 0 | Y35: 0 | Z35: 0 | AA35: 0 | AB35: 0 | AC35: 0 | AD35: 0 | AE35: 0 | AF35: 0 | AG35: 3421259.461 | AH35: 0 | AI35: 0 | AJ35: 0 | AK35: 0 | AL35: 0 | AM35: 0 | AN35: 0 | AO35: 0 | AP35: 0 | AQ35: 0
A36: 8 | B36: ='Tab 6 - Financial Model'!B21 -> Shepard Industrial Station | D36: ='Tab 6 - Financial Model'!I21 -> 30 | E36: =IF(AND($D36=E$9,$B36='Tab 6 - Financial Model'!$B21),('Tab 6 - Financial Model'!$D21*(1+'Tab 6 - Financial Model'!$E$25)^'Tab 7 - Bylaw Continuity'!E$9),0) -> 0 | F36: =IF(AND($D36=F$9,$B36='Tab 6 - Financial Model'!$B21),('Tab 6 - Financial Model'!$D21*(1+'Tab 6 - Financial Model'!$E$25)^'Tab 7 - Bylaw Continuity'!F$9),0) -> 0 | G36: =IF(AND($D36=G$9,$B36='Tab 6 - Financial Model'!$B21),('Tab 6 - Financial Model'!$D21*(1+'Tab 6 - Financial Model'!$E$25)^'Tab 7 - Bylaw Continuity'!G$9),0) -> 0 | H36: =IF(AND($D36=H$9,$B36='Tab 6 - Financial Model'!$B21),('Tab 6 - Financial Model'!$D21*(1+'Tab 6 - Financial Model'!$E$25)^'Tab 7 - Bylaw Continuity'!H$9),0) -> 0 | I36: =IF(AND($D36=I$9,$B36='Tab 6 - Financial Model'!$B21),('Tab 6 - Financial Model'!$D21*(1+'Tab 6 - Financial Model'!$E$25)^'Tab 7 - Bylaw Continuity'!I$9),0) -> 0 | J36: =IF(AND($D36=J$9,$B36='Tab 6 - Financial Model'!$B21),('Tab 6 - Financial Model'!$D21*(1+'Tab 6 - Financial Model'!$E$25)^'Tab 7 - Bylaw Continuity'!J$9),0) -> 0 | K36: =IF(AND($D36=K$9,$B36='Tab 6 - Financial Model'!$B21),('Tab 6 - Financial Model'!$D21*(1+'Tab 6 - Financial Model'!$E$25)^'Tab 7 - Bylaw Continuity'!K$9),0) -> 0 | L36: =IF(AND($D36=L$9,$B36='Tab 6 - Financial Model'!$B21),('Tab 6 - Financial Model'!$D21*(1+'Tab 6 - Financial Model'!$E$25)^'Tab 7 - Bylaw Continuity'!L$9),0) -> 0 | M36: =IF(AND($D36=M$9,$B36='Tab 6 - Financial Model'!$B21),('Tab 6 - Financial Model'!$D21*(1+'Tab 6 - Financial Model'!$E$25)^'Tab 7 - Bylaw Continuity'!M$9),0) -> 0 | N36: =IF(AND($D36=N$9,$B36='Tab 6 - Financial Model'!$B21),('Tab 6 - Financial Model'!$D21*(1+'Tab 6 - Financial Model'!$E$25)^'Tab 7 - Bylaw Continuity'!N$9),0) -> 0 | O36: =IF(AND($D36=O$9,$B36='Tab 6 - Financial Model'!$B21),('Tab 6 - Financial Model'!$D21*(1+'Tab 6 - Financial Model'!$E$25)^'Tab 7 - Bylaw Continuity'!O$9),0) -> 0 | P36: =IF(AND($D36=P$9,$B36='Tab 6 - Financial Model'!$B21),('Tab 6 - Financial Model'!$D21*(1+'Tab 6 - Financial Model'!$E$25)^'Tab 7 - Bylaw Continuity'!P$9),0) -> 0 | Q36: =IF(AND($D36=Q$9,$B36='Tab 6 - Financial Model'!$B21),('Tab 6 - Financial Model'!$D21*(1+'Tab 6 - Financial Model'!$E$25)^'Tab 7 - Bylaw Continuity'!Q$9),0) -> 0 | R36: =IF(AND($D36=R$9,$B36='Tab 6 - Financial Model'!$B21),('Tab 6 - Financial Model'!$D21*(1+'Tab 6 - Financial Model'!$E$25)^'Tab 7 - Bylaw Continuity'!R$9),0) -> 0 | S36: =IF(AND($D36=S$9,$B36='Tab 6 - Financial Model'!$B21),('Tab 6 - Financial Model'!$D21*(1+'Tab 6 - Financial Model'!$E$25)^'Tab 7 - Bylaw Continuity'!S$9),0) -> 0 | T36: =IF(AND($D36=T$9,$B36='Tab 6 - Financial Model'!$B21),('Tab 6 - Financial Model'!$D21*(1+'Tab 6 - Financial Model'!$E$25)^'Tab 7 - Bylaw Continuity'!T$9),0) -> 0 | U36: =IF(AND($D36=U$9,$B36='Tab 6 - Financial Model'!$B21),('Tab 6 - Financial Model'!$D21*(1+'Tab 6 - Financial Model'!$E$25)^'Tab 7 - Bylaw Continuity'!U$9),0) -> 0 | V36: =IF(AND($D36=V$9,$B36='Tab 6 - Financial Model'!$B21),('Tab 6 - Financial Model'!$D21*(1+'Tab 6 - Financial Model'!$E$25)^'Tab 7 - Bylaw Continuity'!V$9),0) -> 0 | W36: =IF(AND($D36=W$9,$B36='Tab 6 - Financial Model'!$B21),('Tab 6 - Financial Model'!$D21*(1+'Tab 6 - Financial Model'!$E$25)^'Tab 7 - Bylaw Continuity'!W$9),0) -> 0 | X36: =IF(AND($D36=X$9,$B36='Tab 6 - Financial Model'!$B21),('Tab 6 - Financial Model'!$D21*(1+'Tab 6 - Financial Model'!$E$25)^'Tab 7 - Bylaw Continuity'!X$9),0) -> 0 | Y36: =IF(AND($D36=Y$9,$B36='Tab 6 - Financial Model'!$B21),('Tab 6 - Financial Model'!$D21*(1+'Tab 6 - Financial Model'!$E$25)^'Tab 7 - Bylaw Continuity'!Y$9),0) -> 0 | Z36: =IF(AND($D36=Z$9,$B36='Tab 6 - Financial Model'!$B21),('Tab 6 - Financial Model'!$D21*(1+'Tab 6 - Financial Model'!$E$25)^'Tab 7 - Bylaw Continuity'!Z$9),0) -> 0 | AA36: =IF(AND($D36=AA$9,$B36='Tab 6 - Financial Model'!$B21),('Tab 6 - Financial Model'!$D21*(1+'Tab 6 - Financial Model'!$E$25)^'Tab 7 - Bylaw Continuity'!AA$9),0) -> 0 | AB36: =IF(AND($D36=AB$9,$B36='Tab 6 - Financial Model'!$B21),('Tab 6 - Financial Model'!$D21*(1+'Tab 6 - Financial Model'!$E$25)^'Tab 7 - Bylaw Continuity'!AB$9),0) -> 0 | AC36: =IF(AND($D36=AC$9,$B36='Tab 6 - Financial Model'!$B21),('Tab 6 - Financial Model'!$D21*(1+'Tab 6 - Financial Model'!$E$25)^'Tab 7 - Bylaw Continuity'!AC$9),0) -> 0 | AD36: =IF(AND($D36=AD$9,$B36='Tab 6 - Financial Model'!$B21),('Tab 6 - Financial Model'!$D21*(1+'Tab 6 - Financial Model'!$E$25)^'Tab 7 - Bylaw Continuity'!AD$9),0) -> 0 | AE36: =IF(AND($D36=AE$9,$B36='Tab 6 - Financial Model'!$B21),('Tab 6 - Financial Model'!$D21*(1+'Tab 6 - Financial Model'!$E$25)^'Tab 7 - Bylaw Continuity'!AE$9),0) -> 0 | AF36: =IF(AND($D36=AF$9,$B36='Tab 6 - Financial Model'!$B21),('Tab 6 - Financial Model'!$D21*(1+'Tab 6 - Financial Model'!$E$25)^'Tab 7 - Bylaw Continuity'!AF$9),0) -> 0 | AG36: =IF(AND($D36=AG$9,$B36='Tab 6 - Financial Model'!$B21),('Tab 6 - Financial Model'!$D21*(1+'Tab 6 - Financial Model'!$E$25)^'Tab 7 - Bylaw Continuity'!AG$9),0) -> 0 | AH36: =IF(AND($D36=AH$9,$B36='Tab 6 - Financial Model'!$B21),('Tab 6 - Financial Model'!$D21*(1+'Tab 6 - Financial Model'!$E$25)^'Tab 7 - Bylaw Continuity'!AH$9),0) -> 0 | AI36: =IF(AND($D36=AI$9,$B36='Tab 6 - Financial Model'!$B21),('Tab 6 - Financial Model'!$D21*(1+'Tab 6 - Financial Model'!$E$25)^'Tab 7 - Bylaw Continuity'!AI$9),0) -> 0 | AJ36: =IF(AND($D36=AJ$9,$B36='Tab 6 - Financial Model'!$B21),('Tab 6 - Financial Model'!$D21*(1+'Tab 6 - Financial Model'!$E$25)^'Tab 7 - Bylaw Continuity'!AJ$9),0) -> 0 | AK36: =IF(AND($D36=AK$9,$B36='Tab 6 - Financial Model'!$B21),('Tab 6 - Financial Model'!$D21*(1+'Tab 6 - Financial Model'!$E$25)^'Tab 7 - Bylaw Continuity'!AK$9),0) -> 0 | AL36: =IF(AND($D36=AL$9,$B36='Tab 6 - Financial Model'!$B21),('Tab 6 - Financial Model'!$D21*(1+'Tab 6 - Financial Model'!$E$25)^'Tab 7 - Bylaw Continuity'!AL$9),0) -> 50988890.02 | AM36: =IF(AND($D36=AM$9,$B36='Tab 6 - Financial Model'!$B21),('Tab 6 - Financial Model'!$D21*(1+'Tab 6 - Financial Model'!$E$25)^'Tab 7 - Bylaw Continuity'!AM$9),0) -> 0 | AN36: =IF(AND($D36=AN$9,$B36='Tab 6 - Financial Model'!$B21),('Tab 6 - Financial Model'!$D21*(1+'Tab 6 - Financial Model'!$E$25)^'Tab 7 - Bylaw Continuity'!AN$9),0) -> 0 | AO36: =IF(AND($D36=AO$9,$B36='Tab 6 - Financial Model'!$B21),('Tab 6 - Financial Model'!$D21*(1+'Tab 6 - Financial Model'!$E$25)^'Tab 7 - Bylaw Continuity'!AO$9),0) -> 0 | AP36: =IF(AND($D36=AP$9,$B36='Tab 6 - Financial Model'!$B21),('Tab 6 - Financial Model'!$D21*(1+'Tab 6 - Financial Model'!$E$25)^'Tab 7 - Bylaw Continuity'!AP$9),0) -> 0 | AQ36: =IF(AND($D36=AQ$9,$B36='Tab 6 - Financial Model'!$B21),('Tab 6 - Financial Model'!$D21*(1+'Tab 6 - Financial Model'!$E$25)^'Tab 7 - Bylaw Continuity'!AQ$9),0) -> 0
B37: Expenditures from 2024 Bylaw | D37: =SUMIF('Tab 6 - Financial Model'!$B$14:$B$21,'Tab 7 - Bylaw Continuity'!B36,'Tab 6 - Financial Model'!$F$14:$F$21) -> 0.92 | E37: =E36*$D37 -> 0 | F37: =F36*$D37 -> 0 | G37: 0 | H37: 0 | I37: 0 | J37: 0 | K37: 0 | L37: 0 | M37: 0 | N37: 0 | O37: 0 | P37: 0 | Q37: 0 | R37: 0 | S37: 0 | T37: 0 | U37: 0 | V37: 0 | W37: 0 | X37: 0 | Y37: 0 | Z37: 0 | AA37: 0 | AB37: 0 | AC37: 0 | AD37: 0 | AE37: 0 | AF37: 0 | AG37: 0 | AH37: 0 | AI37: 0 | AJ37: 0 | AK37: 0 | AL37: 46909778.81 | AM37: 0 | AN37: 0 | AO37: 0 | AP37: 0 | AQ37: 0
B38: Remainder: needed from other sources | E38: =E36-E37 -> 0 | F38: =F36-F37 -> 0 | G38: 0 | H38: 0 | I38: 0 | J38: 0 | K38: 0 | L38: 0 | M38: 0 | N38: 0 | O38: 0 | P38: 0 | Q38: 0 | R38: 0 | S38: 0 | T38: 0 | U38: 0 | V38: 0 | W38: 0 | X38: 0 | Y38: 0 | Z38: 0 | AA38: 0 | AB38: 0 | AC38: 0 | AD38: 0 | AE38: 0 | AF38: 0 | AG38: 0 | AH38: 0 | AI38: 0 | AJ38: 0 | AK38: 0 | AL38: 4079111.201 | AM38: 0 | AN38: 0 | AO38: 0 | AP38: 0 | AQ38: 0
B39: TOTAL:
B40: Expenditures from 2024 Bylaw | E40: =E16+E19+E22+E25+E28+E31+E34+E37 -> 0 | F40: =F16+F19+F22+F25+F28+F31+F34+F37 -> 0 | G40: 0 | H40: 0 | I40: 0 | J40: 0 | K40: 0 | L40: 0 | M40: 0 | N40: 0 | O40: 0 | P40: 33278039.11 | Q40: 0 | R40: 23213747.25 | S40: 0 | T40: 0 | U40: 0 | V40: 33269233.46 | W40: 0 | X40: 0 | Y40: 29694539.75 | Z40: 0 | AA40: 0 | AB40: 32999268.92 | AC40: 0 | AD40: 44080858.9 | AE40: 0 | AF40: 0 | AG40: 39344483.8 | AH40: 0 | AI40: 0 | AJ40: 0 | AK40: 0 | AL40: 46909778.81 | AM40: 0 | AN40: 0 | AO40: 0 | AP40: 0 | AQ40: 0
B41: Remainder: needed from other sources | E41: =E17+E20+E23+E26+E29+E32+E35+E38 -> 0 | F41: =F17+F20+F23+F26+F29+F32+F35+F38 -> 0 | G41: 0 | H41: 0 | I41: 0 | J41: 0 | K41: 0 | L41: 0 | M41: 0 | N41: 0 | O41: 0 | P41: 2893742.532 | Q41: 0 | R41: 2018586.717 | S41: 0 | T41: 0 | U41: 0 | V41: 2892976.822 | W41: 0 | X41: 0 | Y41: 2582133.891 | Z41: 0 | AA41: 0 | AB41: 2869501.645 | AC41: 0 | AD41: 3833118.165 | AE41: 0 | AF41: 0 | AG41: 3421259.461 | AH41: 0 | AI41: 0 | AJ41: 0 | AK41: 0 | AL41: 4079111.201 | AM41: 0 | AN41: 0 | AO41: 0 | AP41: 0 | AQ41: 0
B42: Expenditures from 2M2016 Bylaw Balance | E42: =E13 -> 0 | F42: =F13 -> 0 | G42: =G13 -> 0 | H42: =IF(H52=0,0,IF(G63>H41,H41,G63)) -> 0 | I42: =IF(I52=0,0,IF(H63>I41,I41,H63)) -> 0 | J42: 0 | K42: 0 | L42: 0 | M42: =IF(M52=0,0,IF(L63>M41,M41,L63)) -> 0 | N42: =IF(N52=0,0,IF(M63>N41,N41,M63)) -> 0 | O42: 0 | P42: 2893742.532 | Q42: =IF(Q52=0,0,IF(P63>Q41,Q41,P63)) -> 0 | R42: =IF(R52=0,0,IF(Q63>R41,R41,Q63)) -> 2018586.717 | S42: 0 | T42: =IF(T52=0,0,IF(S63>T41,T41,S63)) -> 0 | U42: =IF(U52=0,0,IF(T63>U41,U41,T63)) -> 0 | V42: 2892976.822 | W42: =IF(W52=0,0,IF(V63>W41,W41,V63)) -> 0 | X42: =IF(X52=0,0,IF(W63>X41,X41,W63)) -> 0 | Y42: 2582133.891 | Z42: =IF(Z52=0,0,IF(Y63>Z41,Z41,Y63)) -> 0 | AA42: =IF(AA52=0,0,IF(Z63>AA41,AA41,Z63)) -> 0 | AB42: =IF(AB52=0,0,IF(AA63>AB41,AB41,AA63)) -> 2869501.645 | AC42: =IF(AC52=0,0,IF(AB63>AC41,AC41,AB63)) -> 0 | AD42: =IF(AD52=0,0,IF(AC63>AD41,AD41,AC63)) -> 2123159.98 | AE42: =IF(AE52=0,0,IF(AD63>AE41,AE41,AD63)) -> 0 | AF42: =IF(AF52=0,0,IF(AE63>AF41,AF41,AE63)) -> 0 | AG42: =IF(AG52=0,0,IF(AF63>AG41,AG41,AF63)) -> 0 | AH42: =IF(AH52=0,0,IF(AG63>AH41,AH41,AG63)) -> 0 | AI42: =IF(AI52=0,0,IF(AH63>AI41,AI41,AH63)) -> 0 | AJ42: =IF(AJ52=0,0,IF(AI63>AJ41,AJ41,AI63)) -> 0 | AK42: =IF(AK52=0,0,IF(AJ63>AK41,AK41,AJ63)) -> 0 | AL42: =IF(AL52=0,0,IF(AK63>AL41,AL41,AK63+AL60)) -> 0 | AM42: =IF(AM52=0,0,IF(AL63>AM41,AM41,AL63)) -> 0 | AN42: =IF(AN52=0,0,IF(AM63>AN41,AN41,AM63)) -> 0 | AO42: =IF(AO52=0,0,IF(AN63>AO41,AO41,AN63)) -> 0 | AP42: =IF(AP52=0,0,IF(AO63>AP41,AP41,AO63)) -> 0 | AQ42: =IF(AQ52=0,0,IF(AP63>AQ41,AQ41,AP63)) -> 0
B43: Expenditures from Non-OSL City Funding Sources | E43: 0 | F43: 0 | G43: 0 | H43: 0 | I43: 0 | J43: 0 | K43: 0 | L43: =(L40+L41)-L40-L42 -> 0 | M43: 0 | N43: 0 | O43: 0 | P43: 0 | Q43: 0 | R43: 0 | S43: 0 | T43: 0 | U43: 0 | V43: 0 | W43: 0 | X43: 0 | Y43: 0 | Z43: 0 | AA43: 0 | AB43: 0 | AC43: 0 | AD43: 1709958.186 | AE43: 0 | AF43: 0 | AG43: 3421259.461 | AH43: 0 | AI43: 0 | AJ43: 0 | AK43: 0 | AL43: 4079111.201 | AM43: 0 | AN43: 0 | AO43: 0 | AP43: 0 | AQ43: 0
A45: Land Absorption (hectares) and DA Contributions ($)
A46: Land absorption forecast and developer contributions under each bylaw. The contribution values feed into the payment schedule below. | D46: Land Absorption (ha's) | E46: 262 | F46: 367 | G46: 506 | H46: ='Tab 6 - Financial Model'!J29 -> 290 | I46: ='Tab 6 - Financial Model'!K29 -> 309 | J46: ='Tab 6 - Financial Model'!L29 -> 327 | K46: ='Tab 6 - Financial Model'!M29 -> 321 | L46: ='Tab 6 - Financial Model'!N29 -> 321 | M46: ='Tab 6 - Financial Model'!O29 -> 318.480898 | N46: ='Tab 6 - Financial Model'!P29 -> 315.9617959 | O46: ='Tab 6 - Financial Model'!Q29 -> 313.4426939 | P46: ='Tab 6 - Financial Model'!R29 -> 310.9235918 | Q46: ='Tab 6 - Financial Model'!S29 -> 308.4044898 | R46: ='Tab 6 - Financial Model'!T29 -> 305.8853878 | S46: ='Tab 6 - Financial Model'!U29 -> 303.3662857 | T46: ='Tab 6 - Financial Model'!V29 -> 300.8471837 | U46: ='Tab 6 - Financial Model'!W29 -> 298.3280816 | V46: ='Tab 6 - Financial Model'!X29 -> 295.8089796 | W46: ='Tab 6 - Financial Model'!Y29 -> 293.2898776 | X46: ='Tab 6 - Financial Model'!Z29 -> 290.7707755 | Y46: ='Tab 6 - Financial Model'!AA29 -> 288.2516735 | Z46: ='Tab 6 - Financial Model'!AB29 -> 285.7325714 | AA46: ='Tab 6 - Financial Model'!AC29 -> 283.2134694 | AB46: ='Tab 6 - Financial Model'!AD29 -> 280.6943673 | AC46: ='Tab 6 - Financial Model'!AE29 -> 278.1752653 | AD46: ='Tab 6 - Financial Model'!AF29 -> 275.6561633 | AE46: ='Tab 6 - Financial Model'!AG29 -> 273.1370612 | AF46: ='Tab 6 - Financial Model'!AH29 -> 270.6179592 | AG46: ='Tab 6 - Financial Model'!AI29 -> 268.0988571 | AH46: ='Tab 6 - Financial Model'!AJ29 -> 265.5797551 | AI46: ='Tab 6 - Financial Model'!AK29 -> 263.0606531 | AJ46: ='Tab 6 - Financial Model'!AL29 -> 225.741551 | AK46: ='Tab 6 - Financial Model'!AM29 -> 223.222449 | AL46: ='Tab 6 - Financial Model'!AN29 -> 220.7033469 | AM46: ='Tab 6 - Financial Model'!AO29 -> 218.1842449 | AN46: ='Tab 6 - Financial Model'!AP29 -> 215.6651429 | AO46: ='Tab 6 - Financial Model'!AQ29 -> 0 | AP46: ='Tab 6 - Financial Model'!AR29 -> 0 | AQ46: ='Tab 6 - Financial Model'!AS29 -> 0
D47: Levy Rates under the 2016 bylaw | E47: 19938 | F47: 20058 | G47: 22144 | H47: 22359
D48: Contributions from signed DA's - 2016 Levy | E48: =E46*E47 -> 5223756 | F48: =F46*F47 -> 7361286 | G48: 11204864 | H48: 6484110
D49: Contributions from signed DA's - 2024 Levy | E49: 0 | F49: 0 | G49: 0 | H49: 0 | I49: ='Tab 6 - Financial Model'!K34 -> 5274259.831 | J49: ='Tab 6 - Financial Model'!L34 -> 5820944.544 | K49: ='Tab 6 - Financial Model'!M34 -> 5959274.752 | L49: ='Tab 6 - Financial Model'!N34 -> 6214927.638 | M49: ='Tab 6 - Financial Model'!O34 -> 6430682.985 | N49: ='Tab 6 - Financial Model'!P34 -> 6653512.125 | O49: ='Tab 6 - Financial Model'!Q34 -> 6883624.912 | P49: ='Tab 6 - Financial Model'!R34 -> 7121236.185 | Q49: ='Tab 6 - Financial Model'!S34 -> 7366565.814 | R49: ='Tab 6 - Financial Model'!T34 -> 7619838.731 | S49: ='Tab 6 - Financial Model'!U34 -> 7881284.963 | T49: ='Tab 6 - Financial Model'!V34 -> 8151139.654 | U49: ='Tab 6 - Financial Model'!W34 -> 8429643.081 | V49: ='Tab 6 - Financial Model'!X34 -> 8717040.664 | W49: ='Tab 6 - Financial Model'!Y34 -> 9013582.96 | X49: ='Tab 6 - Financial Model'!Z34 -> 9319525.657 | Y49: ='Tab 6 - Financial Model'!AA34 -> 9635129.548 | Z49: ='Tab 6 - Financial Model'!AB34 -> 9960660.505 | AA49: ='Tab 6 - Financial Model'!AC34 -> 10296389.43 | AB49: ='Tab 6 - Financial Model'!AD34 -> 10642592.2 | AC49: ='Tab 6 - Financial Model'!AE34 -> 10999549.58 | AD49: ='Tab 6 - Financial Model'!AF34 -> 11367547.18 | AE49: ='Tab 6 - Financial Model'!AG34 -> 11746875.29 | AF49: ='Tab 6 - Financial Model'!AH34 -> 12137828.8 | AG49: ='Tab 6 - Financial Model'!AI34 -> 12540707.06 | AH49: ='Tab 6 - Financial Model'!AJ34 -> 12955813.69 | AI49: ='Tab 6 - Financial Model'!AK34 -> 13383456.43 | AJ49: ='Tab 6 - Financial Model'!AL34 -> 11977510.7 | AK49: ='Tab 6 - Financial Model'!AM34 -> 12351952.1 | AL49: ='Tab 6 - Financial Model'!AN34 -> 12736477.04 | AM49: ='Tab 6 - Financial Model'!AO34 -> 13131261.57 | AN49: ='Tab 6 - Financial Model'!AP34 -> 13536478.26 | AO49: ='Tab 6 - Financial Model'!AQ34 -> 0 | AP49: ='Tab 6 - Financial Model'!AR34 -> 0 | AQ49: ='Tab 6 - Financial Model'!AS34 -> 0
A51: Yearly Cash Flows ($)
A52: The opening balance takes the closing balance from the prior year. | D52: Opening Balance - 2016 Bylaw | H52: =G63 -> 77871752 | I52: =H63 -> 64172754.05 | J52: =I63 -> 50989673.29 | K52: 48004791.44 | L52: 50546330.58 | M52: =L63 -> 51832943.98 | N52: 54056577.28 | O52: 56375604.45 | P52: 35601657.84 | Q52: 9000020.331 | R52: 9386121.203 | S52: 7726900.4 | T52: 8058384.427 | U52: 8404089.119 | V52: 8764624.542 | W52: 6185595.76 | X52: 6450957.818 | Y52: 6727703.908 | Z52: =Y63 -> 4378801.743 | AA52: 4566652.338 | AB52: 4762561.723 | AC52: 2035823.166 | AD52: 2123159.98 | AE52: 0 | AF52: 0 | AG52: 0 | AH52: 0 | AI52: 0 | AJ52: 0 | AK52: 0 | AL52: 0 | AM52: 0 | AN52: 0 | AO52: 0 | AP52: =AO63 -> 0 | AQ52: 0
D53: Opening Balance - 2024 Bylaw | H53: 0 | I53: =H64 -> 0 | J53: 0 | K53: 0 | L53: =K64 -> 0 | M53: 5387392.705 | N53: 11564315.66 | O53: 18147525.99 | P53: 25274292.69 | Q53: -1064672.066 | R53: 5685883.462 | S53: -10750595.6 | T53: -3937809.45 | U53: 3417837.176 | V53: 11347746.66 | W53: -14097954.99 | X53: -6376775.665 | Y53: 1960119.584 | Z53: -19383257.73 | AA53: -11007875.17 | AB53: -1960683.531 | AC53: -25910097.01 | AD53: -16847323.5 | AE53: -52079220.02 | AF53: -43442542.76 | AG53: -34070737.92 | AH53: -64109414.5 | AI53: -54860862.61 | AJ53: -44816208.39 | AK53: -33929118.5 | AL53: -22150961.78 | AM53: -57346700.04 | AN53: -47572445.16 | AO53: -36996401.58 | AP53: -25573872.73 | AQ53: -13258064.75
A55: Payment schedule from signed DA's. Payments from DA's signed under the 2016 bylaw are shown in green, from the 2024 bylaw in orange. | B55: Year 0 | D55: 0 | H55: =$D55*H47*H46 -> 0 | I55: =$D55*A10*I46 -> 0 | J55: =$D55*J49*J46 -> 0 | K55: =$D55*K47*K46 -> 0 | L55: 0 | M55: 0 | N55: 0 | O55: 0 | P55: 0 | Q55: 0 | R55: 0 | S55: 0 | T55: 0 | U55: 0 | V55: 0 | W55: 0 | X55: 0 | Y55: 0 | Z55: 0 | AA55: 0 | AB55: 0 | AC55: 0 | AD55: 0 | AE55: 0 | AF55: 0 | AG55: 0 | AH55: 0 | AI55: 0 | AJ55: 0 | AK55: 0 | AL55: 0 | AM55: 0 | AN55: 0 | AO55: 0 | AP55: 0 | AQ55: 0
B56: Year 1 | D56: 0 | H56: =$D56*G47*G46 -> 0 | I56: =$D56*H47*H46 -> 0 | J56: =$D56*A10*I46 -> 0 | K56: =$D56*J49*J46 -> 0 | L56: =$D56*K47*K46 -> 0 | M56: 0 | N56: 0 | O56: 0 | P56: 0 | Q56: 0 | R56: 0 | S56: 0 | T56: 0 | U56: 0 | V56: 0 | W56: 0 | X56: 0 | Y56: 0 | Z56: 0 | AA56: 0 | AB56: 0 | AC56: 0 | AD56: 0 | AE56: 0 | AF56: 0 | AG56: 0 | AH56: 0 | AI56: 0 | AJ56: 0 | AK56: 0 | AL56: 0 | AM56: 0 | AN56: 0 | AO56: 0 | AP56: 0 | AQ56: 0
B57: Year 2 | D57: 0 | H57: =$D57*F48 -> 0 | I57: =$D57*G48 -> 0 | J57: =$D57*H48 -> 0 | K57: =$D57*I49 -> 0 | L57: 0 | M57: 0 | N57: 0 | O57: 0 | P57: 0 | Q57: 0 | R57: 0 | S57: 0 | T57: 0 | U57: 0 | V57: 0 | W57: 0 | X57: 0 | Y57: 0 | Z57: 0 | AA57: 0 | AB57: 0 | AC57: 0 | AD57: 0 | AE57: 0 | AF57: 0 | AG57: 0 | AH57: 0 | AI57: 0 | AJ57: 0 | AK57: 0 | AL57: 0 | AM57: 0 | AN57: 0 | AO57: 0 | AP57: 0 | AQ57: 0
B58: Year 3 | D58: 1 | H58: =$D58*E48 -> 5223756 | I58: =$D58*F48 -> 7361286 | J58: =$D58*G48 -> 11204864 | K58: =$D58*H48 -> 6484110 | L58: =$D58*I49 -> 5274259.831 | M58: 5820944.544 | N58: 5959274.752 | O58: 6214927.638 | P58: 6430682.985 | Q58: 6653512.125 | R58: 6883624.912 | S58: 7121236.185 | T58: 7366565.814 | U58: 7619838.731 | V58: 7881284.963 | W58: 8151139.654 | X58: 8429643.081 | Y58: 8717040.664 | Z58: 9013582.96 | AA58: 9319525.657 | AB58: 9635129.548 | AC58: 9960660.505 | AD58: 10296389.43 | AE58: 10642592.2 | AF58: 10999549.58 | AG58: 11367547.18 | AH58: 11746875.29 | AI58: 12137828.8 | AJ58: 12540707.06 | AK58: 12955813.69 | AL58: 13383456.43 | AM58: 11977510.7 | AN58: 12351952.1 | AO58: 12736477.04 | AP58: 13131261.57 | AQ58: 13536478.26
A60: Investment Income: shown for each bylaw separately. | D60: Investment Income - 2016 Bylaw | H60: =((H52+(SUM(H55:H58)*0.5))-((H42+H13)*0.5))*'Tab 6 - Financial Model'!E26 -> 2982872.049 | I60: =((I52+(SUM(I56:I58)*0.5))-((I42+I13)*0.5))*'Tab 6 - Financial Model'!E26 -> 2418360.239 | J60: =((J52+(SUM(J57:J58)*0.5))-((J42+J13)*0.5))*'Tab 6 - Financial Model'!E26 -> 2078840.147 | K60: =((K52+(SUM(K58)*0.5))-((K42+K13)*0.5))*'Tab 6 - Financial Model'!E26 -> 2069530.146 | L60: =(L52-((L42+L13)*0.5))*'Tab 6 - Financial Model'!$E$26 -> 2149919.663 | M60: =(M52-((M42+M13)*0.5))*'Tab 6 - Financial Model'!$E$26 -> 2223633.297 | N60: =(N52-((N42+N13)*0.5))*'Tab 6 - Financial Model'!$E$26 -> 2319027.165 | O60: =(O52-((O42+O13)*0.5))*'Tab 6 - Financial Model'!$E$26 -> 1931481.987 | P60: =(P52-((P42+P13)*0.5))*'Tab 6 - Financial Model'!$E$26 -> 936615.5923 | Q60: =(Q52-((Q42+Q13)*0.5))*'Tab 6 - Financial Model'!$E$26 -> 386100.8722 | R60: =(R52-((R42+R13)*0.5))*'Tab 6 - Financial Model'!$E$26 -> 359365.9145 | S60: =(S52-((S42+S13)*0.5))*'Tab 6 - Financial Model'!$E$26 -> 331484.0272 | T60: =(T52-((T42+T13)*0.5))*'Tab 6 - Financial Model'!$E$26 -> 345704.6919 | U60: =(U52-((U42+U13)*0.5))*'Tab 6 - Financial Model'!$E$26 -> 360535.4232 | V60: =(V52-((V42+V13)*0.5))*'Tab 6 - Financial Model'!$E$26 -> 313948.04 | W60: =(W52-((W42+W13)*0.5))*'Tab 6 - Financial Model'!$E$26 -> 265362.0581 | X60: =(X52-((X42+X13)*0.5))*'Tab 6 - Financial Model'!$E$26 -> 276746.0904 | Y60: =(Y52-((Y42+Y13)*0.5))*'Tab 6 - Financial Model'!$E$26 -> 233231.7257 | Z60: =(Z52-((Z42+Z13)*0.5))*'Tab 6 - Financial Model'!$E$26 -> 187850.5948 | AA60: =(AA52-((AA42+AA13)*0.5))*'Tab 6 - Financial Model'!$E$26 -> 195909.3853 | AB60: =(AB52-((AB42+AB13)*0.5))*'Tab 6 - Financial Model'!$E$26 -> 142763.0876 | AC60: =(AC52-((AC42+AC13)*0.5))*'Tab 6 - Financial Model'!$E$26 -> 87336.81381 | AD60: =(AD52-((AD42+AD13)*0.5))*'Tab 6 - Financial Model'!$E$26 -> 45541.78156 | AE60: =(AE52-((AE42+AE13)*0.5))*'Tab 6 - Financial Model'!$E$26 -> 0 | AF60: =(AF52-((AF42+AF13)*0.5))*'Tab 6 - Financial Model'!$E$26 -> 0 | AG60: =(AG52-((AG42+AG13)*0.5))*'Tab 6 - Financial Model'!$E$26 -> 0 | AH60: =(AH52-((AH42+AH13)*0.5))*'Tab 6 - Financial Model'!$E$26 -> 0 | AI60: =(AI52-((AI42+AI13)*0.5))*'Tab 6 - Financial Model'!$E$26 -> 0 | AJ60: =(AJ52-((AJ42+AJ13)*0.5))*'Tab 6 - Financial Model'!$E$26 -> 0 | AK60: =(AK52-((AK42+AK13)*0.5))*'Tab 6 - Financial Model'!$E$26 -> 0 | AL60: =(AL52-(AL52*0.5))*'Tab 6 - Financial Model'!$E$26 -> 0 | AM60: =(AM52-((AM42+AM13)*0.5))*'Tab 6 - Financial Model'!$E$26 -> 0 | AN60: =(AN52-((AN42+AN13)*0.5))*'Tab 6 - Financial Model'!$E$26 -> 0 | AO60: =(AO52-((AO42+AO13)*0.5))*'Tab 6 - Financial Model'!$E$26 -> 0 | AP60: =(AP52-((AP42+AP13)*0.5))*'Tab 6 - Financial Model'!$E$26 -> 0 | AQ60: =(AQ52-((AQ42+AQ13)*0.5))*'Tab 6 - Financial Model'!$E$26 -> 0
D61: Investment Income - 2024 Bylaw | H61: =(H53-(H40*0.5))*'Tab 6 - Financial Model'!E26 -> 0 | I61: =((I53+(SUM(I55)*0.5))-(I40*0.5))*'Tab 6 - Financial Model'!E26 -> 0 | J61: =((J53+(SUM(J55:J56)*0.5))-(J40*0.5))*'Tab 6 - Financial Model'!E26 -> 0 | K61: =((K53+(SUM(K55:K57)*0.5))-(K40*0.5))*'Tab 6 - Financial Model'!E26 -> 0 | L61: =((L53+(SUM(L55:L58)*0.5))-(L40*0.5))*'Tab 6 - Financial Model'!$E$26 -> 113132.8734 | M61: =((M53+(SUM(M55:M58)*0.5))-(M40*0.5))*'Tab 6 - Financial Model'!$E$26 -> 355978.4075 | N61: =((N53+(SUM(N55:N58)*0.5))-(N40*0.5))*'Tab 6 - Financial Model'!$E$26 -> 623935.5851 | O61: =((O53+(SUM(O55:O58)*0.5))-(O40*0.5))*'Tab 6 - Financial Model'!$E$26 -> 911839.0629 | P61: =((P53+(SUM(P55:P58)*0.5))-(P40*0.5))*'Tab 6 - Financial Model'!$E$26 -> 508391.3676 | Q61: =((Q53+(SUM(Q55:Q58)*0.5))-(Q40*0.5))*'Tab 6 - Financial Model'!$E$26 -> 97043.40345 | R61: =((R53+(SUM(R55:R58)*0.5))-(R40*0.5))*'Tab 6 - Financial Model'!$E$26 -> -106356.7236 | S61: =((S53+(SUM(S55:S58)*0.5))-(S40*0.5))*'Tab 6 - Financial Model'!$E$26 -> -308450.0351 | T61: =((T53+(SUM(T55:T58)*0.5))-(T40*0.5))*'Tab 6 - Financial Model'!$E$26 -> -10919.18867 | U61: =((U53+(SUM(U55:U58)*0.5))-(U40*0.5))*'Tab 6 - Financial Model'!$E$26 -> 310070.7556 | V61: =((V53+(SUM(V55:V58)*0.5))-(V40*0.5))*'Tab 6 - Financial Model'!$E$26 -> -57753.16337 | W61: =((W53+(SUM(W55:W58)*0.5))-(W40*0.5))*'Tab 6 - Financial Model'!$E$26 -> -429960.3237 | X61: =((X53+(SUM(X55:X58)*0.5))-(X40*0.5))*'Tab 6 - Financial Model'!$E$26 -> -92747.83194 | Y61: =((Y53+(SUM(Y55:Y58)*0.5))-(Y40*0.5))*'Tab 6 - Financial Model'!$E$26 -> -365878.2252 | Z61: =((Z53+(SUM(Z55:Z58)*0.5))-(Z40*0.5))*'Tab 6 - Financial Model'!$E$26 -> -638200.402 | AA61: =((AA53+(SUM(AA55:AA58)*0.5))-(AA40*0.5))*'Tab 6 - Financial Model'!$E$26 -> -272334.0194 | AB61: =((AB53+(SUM(AB55:AB58)*0.5))-(AB40*0.5))*'Tab 6 - Financial Model'!$E$26 -> -585274.1129 | AC61: =((AC53+(SUM(AC55:AC58)*0.5))-(AC40*0.5))*'Tab 6 - Financial Model'!$E$26 -> -897886.9939 | AD61: =((AD53+(SUM(AD55:AD58)*0.5))-(AD40*0.5))*'Tab 6 - Financial Model'!$E$26 -> -1447427.048 | AE61: =((AE53+(SUM(AE55:AE58)*0.5))-(AE40*0.5))*'Tab 6 - Financial Model'!$E$26 -> -2005914.936 | AF61: =((AF53+(SUM(AF55:AF58)*0.5))-(AF40*0.5))*'Tab 6 - Financial Model'!$E$26 -> -1627744.746 | AG61: =((AG53+(SUM(AG55:AG58)*0.5))-(AG40*0.5))*'Tab 6 - Financial Model'!$E$26 -> -2061739.948 | AH61: =((AH53+(SUM(AH55:AH58)*0.5))-(AH40*0.5))*'Tab 6 - Financial Model'!$E$26 -> -2498323.407 | AI61: =((AI53+(SUM(AI55:AI58)*0.5))-(AI40*0.5))*'Tab 6 - Financial Model'!$E$26 -> -2093174.578 | AJ61: =((AJ53+(SUM(AJ55:AJ58)*0.5))-(AJ40*0.5))*'Tab 6 - Financial Model'!$E$26 -> -1653617.173 | AK61: =((AK53+(SUM(AK55:AK58)*0.5))-(AK40*0.5))*'Tab 6 - Financial Model'!$E$26 -> -1177656.98 | AL61: =((AL53+(SUM(AL55:AL58)*0.5))-(AL40*0.5))*'Tab 6 - Financial Model'!$E$26 -> -1669415.876 | AM61: =((AM53+(SUM(AM55:AM58)*0.5))-(AM40*0.5))*'Tab 6 - Financial Model'!$E$26 -> -2203255.827 | AN61: =((AN53+(SUM(AN55:AN58)*0.5))-(AN40*0.5))*'Tab 6 - Financial Model'!$E$26 -> -1775908.525 | AO61: =((AO53+(SUM(AO55:AO58)*0.5))-(AO40*0.5))*'Tab 6 - Financial Model'!$E$26 -> -1313948.195 | AP61: =((AP53+(SUM(AP55:AP58)*0.5))-(AP40*0.5))*'Tab 6 - Financial Model'!$E$26 -> -815453.5797 | AQ61: =((AQ53+(SUM(AQ55:AQ58)*0.5))-(AQ40*0.5))*'Tab 6 - Financial Model'!$E$26 -> -278413.5188
A63: Closing Balances = Starting balance + contributions + investment income - expenditures | D63: Closing Balance - 2016 Bylaw | G63: 77871752 | H63: =H52+SUM(H55:H60)-H42-H13 -> 64172754.05 | I63: =I52+SUM(I56:I60)-I42-I13 -> 50989673.29 | J63: =J52+SUM(J57:J60)-J42-J13 -> 48004791.44 | K63: =K52+SUM(K58:K60)-K42-K13 -> 50546330.58 | L63: =IF(L52-L42-L13>0,L52+L60-L42-L13,0) -> 51832943.98 | M63: 54056577.28 | N63: 56375604.45 | O63: 35601657.84 | P63: 9000020.331 | Q63: 9386121.203 | R63: 7726900.4 | S63: 8058384.427 | T63: 8404089.119 | U63: 8764624.542 | V63: 6185595.76 | W63: 6450957.818 | X63: 6727703.908 | Y63: 4378801.743 | Z63: 4566652.338 | AA63: 4762561.723 | AB63: 2035823.166 | AC63: 2123159.98 | AD63: 0 | AE63: 0 | AF63: 0 | AG63: 0 | AH63: 0 | AI63: 0 | AJ63: 0 | AK63: 0 | AL63: 0 | AM63: 0 | AN63: 0 | AO63: 0 | AP63: 0 | AQ63: 0
D64: Closing Balance - 2024 Bylaw | H64: =SUM(H53:H57,H61)-H40 -> 0 | I64: =SUM(I53:I57,I61)-I40 -> 0 | J64: =SUM(J53:J57,J61)-J40 -> 0 | K64: =SUM(K53:K57,K61)-K40 -> 0 | L64: =SUM(L53:L58,L61)-L40 -> 5387392.705 | M64: 11564315.66 | N64: 18147525.99 | O64: 25274292.69 | P64: -1064672.066 | Q64: 5685883.462 | R64: -10750595.6 | S64: -3937809.45 | T64: 3417837.176 | U64: 11347746.66 | V64: -14097954.99 | W64: -6376775.665 | X64: 1960119.584 | Y64: -19383257.73 | Z64: -11007875.17 | AA64: -1960683.531 | AB64: -25910097.01 | AC64: -16847323.5 | AD64: -52079220.02 | AE64: -43442542.76 | AF64: -34070737.92 | AG64: -64109414.5 | AH64: -54860862.61 | AI64: -44816208.39 | AJ64: -33929118.5 | AK64: -22150961.78 | AL64: -57346700.04 | AM64: -47572445.16 | AN64: -36996401.58 | AO64: -25573872.73 | AP64: -13258064.75 | AQ64: -2.002343535e-08

Sheet Tab 4 - Summary (hidden)
A3: Assumptions
A4: Escalation Rate | B4: The Escalation factor of 3.58% is a 5 year smoothed average, determined using Non-residential Construction Price Index (CPI) for Calgary from 1981 - 2022, excluding 4 years of hyper inflationary period in Calgary from 2006 -2009.
A5: Discount Rate | B5: The discount rate of 4.29% is based on asset mix of the investments held on the capital deposits and the Long term Capital Market assumptions that City uses in projecting returns from investment portfolios
A6: Leviable Ha | B6: Leviable hectares are determined by Corportate economics from 2024 to 2026 and 2027 forward is deterrmined by dividing the planned hectares to the remaining hectares.
A7: Development schedule | B7: Assumptions are built around the development schedule of the fire stations which can change based on developing communities.
A8: Benefit Rate | B8: Benefit rate calculations consider the land that will benefit from infrastructure and then tie back to the estimated future residents/jobs in that land.
A9: Collection schedule | B9: This financial model considers that we start collecting from developers with the 3 year delay in collections after the DA is signed.
A12: Steps to build Financial Model in Tab 3
A13: Step 1: | B13: Multiply the current capital cost to the benefit rate% to calculate the leviable cost.
A14: Step 2: | B14: Calculate the future value of leviable costs based on the required infrastructure build timeline.
A15: Step 3: | B15: Use the future value calculated above in Step 1 to recalculate the present value of that amount in the required infrastructure built year.
A16: Step 4: | B16: Use the present value of future cashflows calculated above in Step 2 to calculate the rate per hectare by dividing it by total hectares.
A17: Step 5: | B17: Multiply the rate calculated above in Step 4 by hectares developed each year in order to calculate the OSL contributions for each year.
A18: Step 6: | B18: Subtract the required infrastructure's future value of capital cost in the year it starts constructing.
A19: Step 7: | B19: Multiply the contributions by discount rate to calculate the investment income earned by The City of Calgary.
A22: Summary | B22: Frequently Asked Questions
A23: Using this financial model, The City will charge reasonable rate per hectare and will be able to recoup any interest costs that they incur from using alternative funding sources for the required infrastructure development over the collection cycle.
A24: The contributions are based on rate that is escalated each year by discount factor. This is done to offset any opportunity income that The City of Calgary loses by providing payment plan to the developers instead of collecting all the cost upfront.
